{"text_format":"1","workbook":"xlsx","n_sheets":4,"sheets":["Доходы","Расходы","ExportParams","Источники"],"not_rendered":{"charts":0,"images":1,"macros":1,"external_links":0,"defined_names":32,"comments":0,"pivot_tables":0},"unopened":[],"bounds":{"document_bytes":16777216,"sheet_cells":100000,"rows_first":2000,"rows_last":500,"rows_between":2000,"halvings":0,"cell_chars":16384,"cell_head_chars":4096},"cells_cut":0,"cells_raw":0,"read":"whole","date_system":"1900"}

{"sheet":"Доходы","index":0,"n_rows":139,"n_cols":8,"rows_kept":139,"cut":false,"hidden":false,"merged":[[10,5,16,5],[0,0,0,3],[1,0,1,3],[3,0,3,3],[5,1,5,3],[6,1,6,3],[9,0,9,3],[10,0,16,0],[10,1,16,1],[10,2,16,2],[10,3,16,3],[10,4,16,4]]}
[null,null,null,null,null,null,null,"RESPPERSONS&=Заведующий отделом финансов=Жолудева И. &&:Исполнитель Специалист=Комбарова Н. "]
["ОТЧЕТ ОБ ИСПОЛНЕНИИ БЮДЖЕТА",null,null,null,null,"КОДЫ"]
[null,null,null,null,"  Форма по ОКУД","0503117",null,"C:\\117M1.txt"]
["на 01 октября 2015 года",null,null,null,"                   Дата","01.10.2015",null,"01.10.2015"]
[null,null,null,null,"             по ОКПО","04032907",null,"117"]
["Наименование финансового органа:","Админстрация муниципального образования \"Город Пикалево\" Бокситогорского муниципального района Ленинградской области",null,null,"    Глава по БК","001",null,"3"]
["Наименование публично-правового образования:","Бюджет муниципального образования \"Город Пикалево\" Бокситогорского муниципального района Ленинградской области",null,null,"по ОКТМО","41603102"]
["Периодичность: месячная",null,null,null,null,""]
["Единица измерения: руб.",null,null,null,"             по ОКЕИ","383",null,"1"]
["                                 1. Доходы бюджета"]
[" Наименование показателя","Код строки","Код дохода по бюджетной классификации","Утвержденные бюджетные назначения","Исполнено","Неисполненные назначения"]
[]
[]
[]
[]
[]
[]
[1,2,3,"4","5","6"]
["Доходы бюджета - всего","010","X",245414629.28999999,157294806.53999999,{"$f":"IF(OR(D19=\"-\",E19=D19),\"-\",D19-IF(E19=\"-\",0,E19))","v":88119822.75}]
["в том числе:"]
["НАЛОГОВЫЕ И НЕНАЛОГОВЫЕ ДОХОДЫ","010","000 10000000000000 000",117475814.47,78339112.319999993,{"$f":"IF(OR(D21=\"-\",E21=D21),\"-\",D21-IF(E21=\"-\",0,E21))","v":39136702.150000006}]
["НАЛОГИ НА ПРИБЫЛЬ, ДОХОДЫ","010","182 10100000000000 000",27987200,19981244.23,8005955.7699999996]
["Налог на доходы физических лиц","010","182 10102000010000 110",27987200,19981244.23,8005955.7699999996]
["Налог на доходы физических лиц с доходов, источником которых является налоговый агент, за исключением доходов, в отношении которых исчисление и уплата налога осуществляются в соответствии со статьями 227, 227.1 и 228 Налогового кодекса Российской Федерации","010","182 10102010010000 110",27813958.760000002,19848855.050000001,7965103.7100000009]
["Налог на доходы физических лиц с доходов, источником которых является налоговый агент, за исключением доходов, в отношении которых исчисление и уплата налога осуществляются в соответствии со статьями 227, 227.1 и 228 Налогового кодекса Российской Федерации (сумма платежа (перерасчеты, недоимка и задолженность по соответствующему платежу, в том числе по отмененному))","010","182 10102010011000 110",27813958.760000002,19840820.09,7973138.6700000018]
["Налог на доходы физических лиц с доходов, источником которых является налоговый агент, за исключением доходов, в отношении которых исчисление и уплата налога осуществляются в соответствии со статьями 227, 227.1 и 228 Налогового кодекса Российской Федерации (пени по соответствующему платежу)","010","182 10102010012100 110","-",2393.16,"-"]
["Налог на доходы физических лиц с доходов, источником которых является налоговый агент, за исключением доходов, в отношении которых исчисление и уплата налога осуществляются в соответствии со статьями 227, 227.1 и 228 Налогового кодекса Российской Федерации (суммы денежных взысканий (штрафов) по соответствующему платежу согласно законодательству Российской Федерации)","010","182 10102010013000 110","-",5641.8,"-"]
["Налог на доходы физических лиц с доходов, полученных от осуществления деятельности физическими лицами, зарегистрированными в качестве индивидуальных предпринимателей, нотариусов, занимающихся частной практикой, адвокатов, учредивших адвокатские кабинеты и других лиц, занимающихся частной практикой в соответствии со статьей 227 Налогового кодекса Российской Федерации","010","182 10102020010000 110",78953.56,59252.35,19701.21]
["Налог на доходы физических лиц с доходов, полученных от осуществления деятельности физическими лицами, зарегистрированными в качестве индивидуальных предпринимателей, нотариусов, занимающихся частной практикой, адвокатов, учредивших адвокатские кабинеты и других лиц, занимающихся частной практикой в соответствии со статьей 227 Налогового кодекса Российской Федерации (сумма платежа (перерасчеты, недоимка и задолженность по соответствующему платежу, в том числе по отмененному))","010","182 10102020011000 110",78953.56,57579.7,21373.86]
["Налог на доходы физических лиц с доходов, полученных от осуществления деятельности физическими лицами, зарегистрированными в качестве индивидуальных предпринимателей, нотариусов, занимающихся частной практикой, адвокатов, учредивших адвокатские кабинеты, и других лиц, занимающихся частной практикой в соответствии со статьей 227 Налогового кодекса Российской Федерации (пени по соответствующему платежу)","010","182 10102020012100 110","-",-36.479999999999997,"-"]
["Налог на доходы физических лиц с доходов, полученных от осуществления деятельности физическими лицами, зарегистрированными в качестве индивидуальных предпринимателей, нотариусов, занимающихся частной практикой, адвокатов, учредивших адвокатские кабинеты и других лиц, занимающихся частной практикой в соответствии со статьей 227 Налогового кодекса Российской Федерации (суммы денежных взысканий (штрафов) по соответствующему платежу согласно законодательству Российской Федерации)","010","182 10102020013000 110","-",1709.13,"-"]
["Налог на доходы физических лиц с доходов, полученных физическими лицами в соответствии со статьей 228 Налогового Кодекса Российской Федерации","010","182 10102030010000 110",94287.679999999993,73136.83,21150.849999999991]
["Налог на доходы физических лиц с доходов, полученных физическими лицами в соответствии со статьей 228 Налогового Кодекса Российской Федерации (сумма платежа (перерасчеты, недоимка и задолженность по соответствующему платежу, в том числе по отмененному))","010","182 10102030011000 110",94287.679999999993,63446.83,30840.849999999991]
["Налог на доходы физических лиц с доходов, полученных физическими лицами в соответствии со статьей 228 Налогового кодекса Российской Федерации (пени по соответствующему платежу)","010","182 10102030012100 110","-",5896.36,"-"]
["Налог на доходы физических лиц с доходов, полученных физическими лицами в соответствии со статьей 228 Налогового Кодекса Российской Федерации (суммы денежных взысканий (штрафов) по соответствующему платежу согласно законодательству Российской Федерации)","010","182 10102030013000 110","-",3793.64,"-"]
["НАЛОГИ НА ТОВАРЫ (РАБОТЫ, УСЛУГИ), РЕАЛИЗУЕМЫЕ НА ТЕРРИТОРИИ РОССИЙСКОЙ ФЕДЕРАЦИИ","010","100 10300000000000 000",1656134.4,1166549.53,489584.86999999988]
["Акцизы по подакцизным товарам (продукции), производимым на территории Российской Федерации","010","100 10302000010000 110",1656134.4,1166549.53,489584.86999999988]
["Доходы от уплаты акцизов на дизельное топливо, зачисляемые в консолидированные бюджеты субъектов Российской Федерации","010","100 10302230010000 110",507034.4,400357.2,106677.20000000001]
["Доходы от уплаты акцизов на моторные масла для дизельных и (или) карбюраторных (инжекторных) двигателей, зачисляемые в консолидированные бюджеты субъектов Российской Федерации","010","100 10302240010000 110",20000,10872.41,9127.59]
["Доходы от уплаты акцизов на автомобильный бензин, производимый на территории Российской Федерации, зачисляемые в консолидированные бюджеты субъектов Российской Федерации","010","100 10302250010000 110",1110000,803234.47,306765.53000000003]
["Доходы от уплаты акцизов на прямогонный бензин, производимый на территории Российской Федерации, зачисляемые в консолидированные бюджеты субъектов Российской Федерации","010","100 10302260010000 110",19100,-47914.55,67014.55]
["НАЛОГИ НА СОВОКУПНЫЙ ДОХОД","010","182 10500000000000 000",24858,24858,"-"]
["Единый сельскохозяйственный налог","010","182 10503000010000 110",24858,24858,"-"]
["Единый сельскохозяйственный налог","010","182 10503010010000 110",24858,24858,"-"]
["Единый сельскохозяйственный налог (сумма платежа (перерасчеты, недоимка и задолженность по соответствующему платежу, в том числе по отмененному))","010","182 10503010011000 110",24858,24858,"-"]
["НАЛОГИ НА ИМУЩЕСТВО","010","182 10600000000000 000",42196700,27690659.59,14506040.41]
["Налог на имущество физических лиц","010","182 10601000000000 110",1309700,801214.71,508485.29000000004]
["Налог на имущество физических лиц, взимаемый по ставкам, применяемым к объектам налогообложения, расположенным в границах городских поселений","010","182 10601030130000 110",1309700,801214.71,508485.29000000004]
["Налог на имущество физических лиц, взимаемый по ставкам, применяемым к объектам налогообложения, расположенным в границах городских поселений (сумма платежа (перерасчеты, недоимка и задолженность по соответствующему платежу, в том числе по отмененному)","010","182 10601030131000 110",1309700,793529.84,516170.16000000003]
["Налог на имущество физических лиц, взимаемый по ставкам, применяемым к объектам налогообложения, расположенным в границах городских поселений (пени по соответствующему платежу)","010","182 10601030132100 110","-",7684.87,"-"]
["Транспортный налог","010","182 10604000020000 110",11356000,8263697.8899999997,3092302.1100000003]
["Транспортный налог с организаций","010","182 10604011020000 110",2800000,1722994.34,1077005.6599999999]
["Транспортный налог с организаций (сумма платежа (перерасчеты, недоимка и задолженность по соответствующему платежу, в том числе по отмененному))","010","182 10604011021000 110",2800000,1718293.05,{"$f":"IF(OR(D53=\"-\",E53=D53),\"-\",D53-IF(E53=\"-\",0,E53))","v":1081706.95}]
["Транспортный налог с организаций (пени по соответствующему платежу)","010","182 10604011022100 110","-",4117.1899999999996,"-"]
["Транспортный налог с организаций (суммы денежных взысканий (штрафов) по соответствующему платежу согласно законодательству Российской Федерации)","010","182 10604011023000 110","-",584.1,"-"]
["Транспортный налог с физических лиц","010","182 10604012020000 110",8556000,6540703.5499999998,2015296.4500000002]
["Транспортный налог с физических лиц (сумма платежа (перерасчеты, недоимка и задолженность по соответствующему платежу, в том числе по отмененному))","010","182 10604012021000 110",8556000,6435839.6900000004,2120160.3099999996]
["Транспортный налог с физических лиц (пени по соответствующему платежу)","010","182 10604012022100 110","-",104714.82,"-"]
["Транспортный налог с физических лиц (проценты по соответствующему платежу)","010","182 10604012022200 110","-",112.53,"-"]
["Транспортный налог с физических лиц (прочие поступления)","010","182 10604012024000 110","-",36.51,"-"]
["Земельный налог","010","182 10606000000000 110",29531000,18625746.989999998,10905253.010000002]
["Земельный налог с организаций","010","182 10606030030000 110",28861000,17667746.210000001,11193253.789999999]
["Земельный налог с организаций, обладающих земельным участком, расположенным в границах городских поселений","010","182 10606033130000 110",28861000,17667746.210000001,11193253.789999999]
["Земельный налог с физических лиц","010","182 10606040000000 110",670000,958000.78,-288000.78000000003]
["Земельный налог с физических лиц, обладающих земельным участком, расположенным в границах городских поселений","010","182 10606043130000 110",670000,958000.78,-288000.78000000003]
["ГОСУДАРСТВЕННАЯ ПОШЛИНА","010","001 10800000000000 000",63400,41600,21800]
["Государственная пошлина за государственную регистрацию, а также за совершение прочих юридически значимых действий","010","001 10807000010000 110",63400,41600,21800]
["Государственная пошлина за выдачу специального разрешения на движение по автомобильным дорогам транспортных средств, осуществляющих перевозки опасных, тяжеловесных и (или) крупногабаритных грузов","010","001 10807170010000 110",63400,41600,21800]
["Государственная пошлина за выдачу органом местного самоуправления поселения специального разрешения на движение по автомобильным дорогам транспортных средств, осуществляющих перевозки опасных, тяжеловесных и (или) крупногабаритных грузов, зачисляемая в бюджеты поселений","010","001 10807175010000 110",63400,41600,21800]
["ДОХОДЫ ОТ ИСПОЛЬЗОВАНИЯ ИМУЩЕСТВА, НАХОДЯЩЕГОСЯ В ГОСУДАРСТВЕННОЙ И МУНИЦИПАЛЬНОЙ СОБСТВЕННОСТИ","010","001 11100000000000 000",37491181.859999999,21982730.420000002,15508451.439999998]
["Доходы, получаемые в виде арендной либо иной платы за передачу в возмездное пользование государственного и муниципального имущества (за исключением имущества бюджетных и автономных учреждений, а также имущества государственных и муниципальных унитарных предприятий, в том числе казенных)","010","001 11105000000000 120",30310181.859999999,20268208.120000001,10041973.739999998]
["Доходы, получаемые в виде арендной платы за земельные участки, государственная собственность на которые не разграничена, а также средства от продажи права на заключение договоров аренды указанных земельных участков","010","001 11105010000000 120",17444300,11842737.83,5601562.1699999999]
["Доходы, получаемые в виде арендной платы за земельные участки, государственная собственность на которые не разграничена и которые расположены в границах городских поселений, а также средства от продажи права на заключение договоров аренды указанных земельных участков","010","001 11105013130000 120",17444300,11842737.83,5601562.1699999999]
["Доходы, получаемые в виде арендной платы за земли после разграничения государственной собственности на землю, а также средства от продажи права на заключение договоров аренды указанных земельных участков (за исключением земельных участков бюджетных и автономных учреждений)","010","001 11105020000000 120",1800000,1411918.87,388081.12999999989]
["Доходы, получаемые в виде арендной платы, а также средства от продажи права на заключение договоров аренды за земли, находящиеся в собственности городских поселений (за исключением земельных участков муниципальных бюджетных и автономных учреждений)","010","001 11105025130000 120",1800000,1411918.87,388081.12999999989]
["Доходы от сдачи в аренду имущества, находящегося в оперативном управлении органов государственной власти, органов местного самоуправления, государственных внебюджетных фондов и созданных ими учреждений (за исключением имущества бюджетных и автономных учреждений)","010","001 11105030000000 120",65881.86,42971.76,22910.1]
["Доходы от сдачи в аренду имущества, находящегося в оперативном управлении органов управления городских поселений и созданных ими учреждений (за исключением имущества муниципальных бюджетных и автономных учреждений)","010","001 11105035130000 120",65881.86,42971.76,22910.1]
["Доходы от сдачи в аренду имущества, составляющего государственную (муниципальную) казну (за исключением земельных участков)","010","001 11105070000000 120",11000000,6970579.6600000001,4029420.34]
["Доходы от сдачи в аренду имущества, составляющего казну городских поселений (за исключением земельных участков)","010","001 11105075130000 120",11000000,6970579.6600000001,4029420.34]
["Платежи от государственных и муниципальных унитарных предприятий","010","001 11107000000000 120",5001000,"-",5001000]
["Доходы от перечисления части прибыли государственных и муниципальных унитарных предприятий, остающейся после уплаты налогов и обязательных платежей","010","001 11107010000000 120",5001000,"-",5001000]
["Доходы от перечисления части прибыли, остающейся после уплаты налогов и иных обязательных платежей муниципальных унитарных предприятий, созданных городскими поселениями","010","001 11107015130000 120",5001000,"-",5001000]
["Прочие доходы от использования имущества и прав, находящихся в государственной и муниципальной собственности (за исключением имущества бюджетных и автономных учреждений, а также имущества государственных и муниципальных унитарных предприятий, в том числе казенных)","010","001 11109000000000 120",2180000,1714522.3,465477.69999999995]
["Прочие поступления от использования имущества, находящегося в государственной и муниципальной собственности (за исключением имущества бюджетных и автономных учреждений, а также имущества государственных и муниципальных унитарных предприятий, в том числе казенных)","010","001 11109040000000 120",2180000,1714522.3,465477.69999999995]
["Прочие поступления от использования имущества, находящегося в собственности городских поселений (за исключением имущества муниципальных бюджетных и автономных учреждений, а также имущества муниципальных унитарных предприятий, в том числе казенных)","010","001 11109045130000 120",2180000,1714522.3,{"$f":"IF(OR(D85=\"-\",E85=D85),\"-\",D85-IF(E85=\"-\",0,E85))","v":465477.69999999995}]
["ДОХОДЫ ОТ ОКАЗАНИЯ ПЛАТНЫХ УСЛУГ (РАБОТ) И КОМПЕНСАЦИИ ЗАТРАТ ГОСУДАРСТВА","010","001 11300000000000 000",156628.69,142201.72,14426.970000000001]
["Доходы от оказания платных услуг (работ)","010","001 11301000000000 130",156628.69,142201.72,14426.970000000001]
["Прочие доходы от оказания платных услуг (работ)","010","001 11301990000000 130",156628.69,142201.72,14426.970000000001]
["Прочие доходы от оказания платных услуг (работ) получателями средств бюджетов городских поселений","010","001 11301995130000 130",156628.69,142201.72,14426.970000000001]
["ДОХОДЫ ОТ ПРОДАЖИ МАТЕРИАЛЬНЫХ И НЕМАТЕРИАЛЬНЫХ АКТИВОВ","010","001 11400000000000 000",7431975,6985901.4400000004,446073.55999999959]
["Доходы от реализации имущества, находящегося в государственной и муниципальной собственности (за исключением имущества бюджетных и автономных учреждений, а также имущества государственных и муниципальных унитарных предприятий, в том числе казенных)","010","001 11402000000000 000",4167475,3755352.14,412122.85999999987]
["Доходы от реализации имущества, находящегося в собственности городских поселений (за исключением движимого имущества муниципальных бюджетных и автономных учреждений, а также имущества муниципальных унитарных предприятий, в том числе казенных), в части реализации основных средств по указанному имуществу","010","001 11402050130000 410",4167475,3755352.14,412122.85999999987]
["Доходы от реализации иного имущества, находящегося в собственности городских поселений (за исключением имущества муниципальных бюджетных и автономных учреждений, а также имущества муниципальных унитарных предприятий, в том числе казенных), в части реализации основных средств по указанному имуществу","010","001 11402053130000 410",4167475,3755352.14,412122.85999999987]
["Доходы от продажи земельных участков, находящихся в государственной и муниципальной собственности (за исключением земельных участков бюджетных и автономных учреждений)","010","001 11406000000000 430",3264500,3230549.3,33950.700000000186]
["Доходы от продажи земельных участков, государственная собственность на которые не разграничена","010","001 11406010000000 430",3264500,3230549.3,33950.700000000186]
["Доходы от продажи земельных участков, государственная собственность на которые не разграничена и которые расположены в границах городских поселений","010","001 11406013130000 430",3264500,3230549.3,33950.700000000186]
["ШТРАФЫ, САНКЦИИ, ВОЗМЕЩЕНИЕ УЩЕРБА","010","001 11600000000000 000",359505.42,223759.83,135745.59]
["Денежные взыскания (штрафы) за нарушение законодательства Российской Федерации о размещении заказов на поставки товаров, выполнение работ, оказание услуг","010","001 11633000000000 140",67505.42,67505.42,"-"]
["Денежные взыскания (штрафы) за нарушение законодательства Российской Федерации о контрактной системе в сфере закупок товаров, работ, услуг для обеспечения государственных и муниципальных нужд для нужд городских поселений","010","001 11633050130000 140",67505.42,67505.42,"-"]
["Поступления сумм в возмещение вреда, причиняемого автомобильным дорогам транспортными средствами, осуществляющими перевозки тяжеловесных и (или) крупногабаритных грузов","010","001 11637000000000 140",92000,73372.78,18627.22]
["Поступления сумм в возмещение вреда, причиняемого автомобильным дорогам местного значения транспортными средствами, осуществляющими перевозки тяжеловесных и (или) крупногабаритных грузов, зачисляемые в бюджеты городских поселений","010","001 11637040130000 140",92000,73372.78,18627.22]
["Прочие поступления от денежных взысканий (штрафов) и иных сумм в возмещение ущерба","010","001 11690000000000 140",200000,82881.63,117118.37]
["Прочие поступления от денежных взысканий (штрафов) и иных сумм в возмещение ущерба, зачисляемые в бюджеты городских поселений","010","001 11690050130000 140",200000,82881.63,117118.37]
["ПРОЧИЕ НЕНАЛОГОВЫЕ ДОХОДЫ","010","001 11700000000000 000",108231.1,99607.56,8623.5400000000081]
["Невыясненные поступления","010","001 11701000000000 180","-",-8623.5400000000009,"-"]
["Невыясненные поступления, зачисляемые в бюджеты городских поселений","010","001 11701050130000 180","-",-8623.5400000000009,"-"]
["Прочие неналоговые доходы","010","001 11705000000000 180",108231.1,108231.1,"-"]
["Прочие неналоговые доходы бюджетов городских поселений","010","001 11705050130000 180",108231.1,108231.1,"-"]
["БЕЗВОЗМЕЗДНЫЕ ПОСТУПЛЕНИЯ","010","001 20000000000000 000",127938814.81999999,78955694.219999999,48983120.599999994]
["БЕЗВОЗМЕЗДНЫЕ ПОСТУПЛЕНИЯ ОТ ДРУГИХ БЮДЖЕТОВ БЮДЖЕТНОЙ СИСТЕМЫ РОССИЙСКОЙ ФЕДЕРАЦИИ","010","001 20200000000000 000",127938814.81999999,88523625.409999996,39415189.409999996]
["Дотации бюджетам субъектов Российской Федерации и муниципальных образований","010","001 20201000000000 151",6304300,5783670,520630]
["Дотации на выравнивание бюджетной обеспеченности","010","001 20201001000000 151",5206300,4685670,520630]
["Дотации бюджетам городских поселений на выравнивание бюджетной обеспеченности","010","001 20201001130000 151",5206300,4685670,520630]
["Дотации бюджетам на поддержку мер по обеспечению сбалансированности бюджетов","010","001 20201003000000 151",1098000,1098000,"-"]
["Дотации бюджетам городских поселений на поддержку мер по обеспечению сбалансированности бюджетов","010","001 20201003130000 151",1098000,1098000,"-"]
["Субсидии бюджетам бюджетной системы Российской Федерации (межбюджетные субсидии)","010","001 20202000000000 151",91878334.090000004,66946909.090000004,24931425]
["Субсидии бюджетам на обеспечение жильем молодых семей","010","001 20202008000000 151",1243563,1243563,{"$f":"IF(OR(D117=\"-\",E117=D117),\"-\",D117-IF(E117=\"-\",0,E117))","v":"-"}]
["Субсидии бюджетам городских поселений на обеспечение жильем молодых семей","010","001 20202008130000 151",1243563,1243563,"-"]
["Субсидии бюджетам на реализацию федеральных целевых программ","010","001 20202051000000 151",430000,430000,"-"]
["Субсидии бюджетам городских поселений на реализацию федеральных целевых программ","010","001 20202051130000 151",430000,430000,"-"]
["Субсидии бюджетам на софинансирование капитальных вложений в объекты государственной (муниципальной) собственности","010","001 20202077000000 151",20000000,"-",20000000]
["Субсидии бюджетам городских поселений на софинансирование капитальных вложений в объекты муниципальной собственности","010","001 20202077130000 151",20000000,"-",20000000]
["Субсидии бюджетам муниципальных образований на обеспечение мероприятий по капитальному ремонту многоквартирных домов, переселению граждан из аварийного жилищного фонда и модернизации систем коммунальной инфраструктуры за счет средств бюджетов","010","001 20202089000000 151",46962489.770000003,46962489.770000003,"-"]
["Субсидии бюджетам городских поселений на обеспечение мероприятий по капитальному ремонту многоквартирных домов, переселению граждан из аварийного жилищного фонда и модернизации систем коммунальной инфраструктуры за счет средств бюджетов","010","001 20202089130000 151",46962489.770000003,46962489.770000003,"-"]
["Субсидии бюджетам городских поселений на обеспечение мероприятий по переселению граждан из аварийного жилищного фонда за счет средств бюджетов","010","001 20202089130002 151",46962489.770000003,46962489.770000003,"-"]
["Субсидии бюджетам на осуществление дорожной деятельности в отношении автомобильных дорог общего пользования, а также капитального ремонта и ремонта дворовых территорий многоквартирных домов, проездов к дворовым территориям многоквартирных домов населенных пунктов","010","001 20202216000000 151",2099536.3199999998,2099536.3199999998,"-"]
["Субсидии бюджетам городских поселений на осуществление дорожной деятельности в отношении автомобильных дорог общего пользования, а также капитального ремонта и ремонта дворовых территорий многоквартирных домов, проездов к дворовым территориям многоквартирных домов населенных пунктов","010","001 20202216130000 151",2099536.3199999998,2099536.3199999998,"-"]
["Прочие субсидии","010","001 20202999000000 151",21142745,16211320,4931425]
["Прочие субсидии бюджетам городских поселений","010","001 20202999130000 151",21142745,16211320,4931425]
["Субвенции бюджетам субъектов Российской Федерации и муниципальных образований","010","001 20203000000000 151",2044600,1763800,280800]
["Субвенции бюджетам на осуществление первичного воинского учета на территориях, где отсутствуют военные комиссариаты","010","001 20203015000000 151",921400,921400,"-"]
["Субвенции бюджетам городских поселений на осуществление первичного воинского учета на территориях, где отсутствуют военные комиссариаты","010","001 20203015130000 151",921400,921400,"-"]
["Субвенции местным бюджетам на выполнение передаваемых полномочий субъектов Российской Федерации","010","001 20203024000000 151",1123200,842400,280800]
["Субвенции бюджетам городских поселений на выполнение передаваемых полномочий субъектов Российской Федерации","010","001 20203024130000 151",1123200,842400,280800]
["Иные межбюджетные трансферты","010","001 20204000000000 151",27711580.73,14029246.32,13682334.41]
["Прочие межбюджетные трансферты, передаваемые бюджетам","010","001 20204999000000 151",27711580.73,14029246.32,13682334.41]
["Прочие межбюджетные трансферты, передаваемые бюджетам городских поселений","010","001 20204999130000 151",27711580.73,14029246.32,13682334.41]
["ВОЗВРАТ ОСТАТКОВ СУБСИДИЙ, СУБВЕНЦИЙ И ИНЫХ МЕЖБЮДЖЕТНЫХ ТРАНСФЕРТОВ, ИМЕЮЩИХ ЦЕЛЕВОЕ НАЗНАЧЕНИЕ, ПРОШЛЫХ ЛЕТ","010","001 21900000000000 000","-",-9567931.1899999995,"-"]
["Возврат остатков субсидий, субвенций и иных межбюджетных трансфертов, имеющих целевое назначение, прошлых лет из бюджетов городских поселений","010","001 21905000130000 151","-",-9567931.1899999995,"-"]

{"sheet":"Расходы","index":1,"n_rows":632,"n_cols":6,"rows_kept":632,"cut":false,"hidden":false,"merged":[[3,5,8,5],[1,0,1,3],[3,0,10,0],[3,1,10,1],[3,2,8,2],[3,3,10,3],[3,4,8,4]]}
[]
["                          2. Расходы бюджета",null,null,null,null,"Форма 0503117  с.2"]
[]
[" Наименование показателя","Код строки","Код расхода по бюджетной классификации","Утвержденные бюджетные назначения","Исполнено","Неисполненные назначения"]
[]
[]
[]
[]
[]
[]
[]
[1,2,3,"4","5","6"]
["Расходы бюджета - всего","200","x",307650511.54000002,156130480.21000001,{"$f":"IF(OR(D13=\"-\",E13=D13),\"-\",D13-IF(E13=\"-\",0,E13))","v":151520031.33000001}]
["в том числе:"]
["НЕ УКАЗАНО","200","000 0000 0000000 000 000 ",307650511.54000002,156130480.21000001,{"$f":"IF(OR(D15=\"-\",E15=D15),\"-\",D15-IF(E15=\"-\",0,E15))","v":151520031.33000001}]
["Администрация муниципального образования \"Город Пикалево\" Бокситогорского района Ленинградской области","200","001 0000 0000000 000 000 ",307650511.54000002,156130480.21000001,151520031.33000001]
["ОБЩЕГОСУДАРСТВЕННЫЕ ВОПРОСЫ","200","001 0100 0000000 000 000 ",46378030.270000003,27975785.77,18402244.500000004]
["Функционирование законодательных (представительных) органов государственной власти и представительных органов муниципальных образований","200","001 0103 0000000 000 000 ",530178,349080,181098]
["Обеспечение деятельности Совета депутатов","200","001 0103 Г110000 000 000 ",488178,346580,141598]
["Расходы на обеспечение функций органов местного самоуправления в рамках обеспечения деятельности Совета депутатов","200","001 0103 Г11Г015 000 000 ",28471,1800,26671]
["Иные выплаты персоналу государственных (муниципальных) органов, за исключением фонда оплаты труда","200","001 0103 Г11Г015 122 000 ",26111,200,25911]
["Расходы","200","001 0103 Г11Г015 122 200 ",26111,200,25911]
["Оплата труда и начисления на выплаты по оплате труда","200","001 0103 Г11Г015 122 210 ",20048,200,19848]
["Прочие выплаты","200","001 0103 Г11Г015 122 212 ",20048,200,19848]
["Оплата работ, услуг","200","001 0103 Г11Г015 122 220 ",6063,"-",6063]
["Транспортные услуги","200","001 0103 Г11Г015 122 222 ",3063,"-",3063]
["Прочие работы, услуги","200","001 0103 Г11Г015 122 226 ",3000,"-",3000]
["Закупка товаров, работ, услуг в сфере информационно-коммуникационных технологий","200","001 0103 Г11Г015 242 000 ",2360,1600,760]
["Расходы","200","001 0103 Г11Г015 242 200 ",2360,1600,760]
["Оплата работ, услуг","200","001 0103 Г11Г015 242 220 ",2360,1600,760]
["Прочие работы, услуги","200","001 0103 Г11Г015 242 226 ",2360,1600,760]
["Межбюджетные трансферты бюджетам муниципальных районов из бюджетов поселений на исполнение полномочий по осуществлению внешнего муниципального финансового контроля в рамках обеспечения деятельности Совета депутатов","200","001 0103 Г11П703 000 000 ",459707,344780,114927]
["Иные межбюджетные трансферты","200","001 0103 Г11П703 540 000 ",459707,344780,114927]
["Расходы","200","001 0103 Г11П703 540 200 ",459707,344780,114927]
["Безвозмездные перечисления бюджетам","200","001 0103 Г11П703 540 250 ",459707,344780,114927]
["Перечисления другим бюджетам бюджетной системы Российской Федерации","200","001 0103 Г11П703 540 251 ",459707,344780,114927]
["Непрограммные расходы органов местного самоуправления по решению общегосударственных вопросов","200","001 0103 Г210000 000 000 ",42000,2500,39500]
["Премирование и награждение юридических и физических лиц по решению совета депутатов МО \"Город Пикалево\" вне системы оплаты труда в рамках непрограммных расходов органов местного самоуправления по решению общегосударственных вопросов","200","001 0103 Г21Г301 000 000 ",42000,2500,39500]
["Публичные нормативные выплаты гражданам несоциального характера","200","001 0103 Г21Г301 330 000 ",42000,2500,39500]
["Расходы","200","001 0103 Г21Г301 330 200 ",42000,2500,39500]
["Прочие расходы","200","001 0103 Г21Г301 330 290 ",42000,2500,39500]
["Функционирование Правительства Российской Федерации, высших исполнительных органов государственной власти субъектов Российской Федерации, местных администраций","200","001 0104 0000000 000 000 ",21801755.079999998,13875734.1,7926020.9799999986]
["Обеспечение деятельности главы администрации","200","001 0104 Г120000 000 000 ",1565225,984571.36,580653.64]
["Расходы на выплаты по оплате труда работников органов местного самоуправления  в рамках обеспечения деятельности главы администрации","200","001 0104 Г12Г014 000 000 ",1533225,978171.36,555053.64]
["Фонд оплаты труда государственных (муниципальных) органов и взносы по обязательному социальному страхованию","200","001 0104 Г12Г014 121 000 ",1533225,978171.36,555053.64]
["Расходы","200","001 0104 Г12Г014 121 200 ",1533225,978171.36,555053.64]
["Оплата труда и начисления на выплаты по оплате труда","200","001 0104 Г12Г014 121 210 ",1533225,978171.36,555053.64]
["Заработная плата","200","001 0104 Г12Г014 121 211 ",1177592,778938.27,398653.73]
["Начисления на выплаты по оплате труда","200","001 0104 Г12Г014 121 213 ",355633,199233.09,156399.91]
["Расходы на обеспечение функций органов местного самоуправления в рамках обеспечения деятельности главы администрации","200","001 0104 Г12Г015 000 000 ",32000,6400,25600]
["Иные выплаты персоналу государственных (муниципальных) органов, за исключением фонда оплаты труда","200","001 0104 Г12Г015 122 000 ",32000,6400,25600]
["Расходы","200","001 0104 Г12Г015 122 200 ",32000,6400,25600]
["Оплата труда и начисления на выплаты по оплате труда","200","001 0104 Г12Г015 122 210 ",32000,6400,25600]
["Прочие выплаты","200","001 0104 Г12Г015 122 212 ",32000,6400,25600]
["Обеспечение деятельности администрации","200","001 0104 Г130000 000 000 ",20236530.079999998,12891162.74,7345367.339999998]
["Расходы на выплаты по оплате труда работников органов местного самоуправления в рамках обеспечения деятельности администрации","200","001 0104 Г13Г014 000 000 ",19544492,12436077.369999999,7108414.6300000008]
["Фонд оплаты труда государственных (муниципальных) органов и взносы по обязательному социальному страхованию","200","001 0104 Г13Г014 121 000 ",19544492,12436077.369999999,7108414.6300000008]
["Расходы","200","001 0104 Г13Г014 121 200 ",19544492,12436077.369999999,7108414.6300000008]
["Оплата труда и начисления на выплаты по оплате труда","200","001 0104 Г13Г014 121 210 ",19544492,12436077.369999999,7108414.6300000008]
["Заработная плата","200","001 0104 Г13Г014 121 211 ",15011131,9670222.2100000009,5340908.7899999991]
["Начисления на выплаты по оплате труда","200","001 0104 Г13Г014 121 213 ",4533361,2765855.16,1767505.8399999999]
["Расходы на обеспечение функций органов местного самоуправления в рамках обеспечения деятельности  администрации","200","001 0104 Г13Г015 000 000 ",454338.08,276810.37,177527.71000000002]
["Иные выплаты персоналу государственных (муниципальных) органов, за исключением фонда оплаты труда","200","001 0104 Г13Г015 122 000 ",110956.35,44005.68,66950.670000000013]
["Расходы","200","001 0104 Г13Г015 122 200 ",110956.35,44005.68,66950.670000000013]
["Оплата труда и начисления на выплаты по оплате труда","200","001 0104 Г13Г015 122 210 ",30000,13959.68,16040.32]
["Прочие выплаты","200","001 0104 Г13Г015 122 212 ",30000,13959.68,16040.32]
["Оплата работ, услуг","200","001 0104 Г13Г015 122 220 ",80956.350000000006,30046,50910.350000000006]
["Транспортные услуги","200","001 0104 Г13Г015 122 222 ",62956.35,25246,37710.35]
["Прочие работы, услуги","200","001 0104 Г13Г015 122 226 ",18000,4800,13200]
["Закупка товаров, работ, услуг в сфере информационно-коммуникационных технологий","200","001 0104 Г13Г015 242 000 ",226218,135460.64000000001,90757.359999999986]
["Расходы","200","001 0104 Г13Г015 242 200 ",226218,135460.64000000001,90757.359999999986]
["Оплата работ, услуг","200","001 0104 Г13Г015 242 220 ",226218,135460.64000000001,90757.359999999986]
["Услуги связи","200","001 0104 Г13Г015 242 221 ",78000,43350,34650]
["Прочие работы, услуги","200","001 0104 Г13Г015 242 226 ",148218,92110.64,56107.360000000001]
["Прочая закупка товаров, работ и услуг для обеспечения государственных (муниципальных) нужд","200","001 0104 Г13Г015 244 000 ",84825.65,68185.58,16640.069999999992]
["Расходы","200","001 0104 Г13Г015 244 200 ",84825.65,68185.58,16640.069999999992]
["Оплата работ, услуг","200","001 0104 Г13Г015 244 220 ",84825.65,68185.58,16640.069999999992]
["Работы, услуги по содержанию имущества","200","001 0104 Г13Г015 244 225 ",20782,11541.93,9240.07]
["Прочие работы, услуги","200","001 0104 Г13Г015 244 226 ",64043.65,56643.65,{"$f":"IF(OR(D79=\"-\",E79=D79),\"-\",D79-IF(E79=\"-\",0,E79))","v":7400}]
["Уплата прочих налогов, сборов и иных платежей","200","001 0104 Г13Г015 852 000 ",28527.11,27858.47,668.63999999999942]
["Расходы","200","001 0104 Г13Г015 852 200 ",28527.11,27858.47,668.63999999999942]
["Прочие расходы","200","001 0104 Г13Г015 852 290 ",28527.11,27858.47,668.63999999999942]
["Уплата иных платежей","200","001 0104 Г13Г015 853 000 ",3810.97,1300,2510.9699999999998]
["Расходы","200","001 0104 Г13Г015 853 200 ",3810.97,1300,2510.9699999999998]
["Прочие расходы","200","001 0104 Г13Г015 853 290 ",3810.97,1300,2510.9699999999998]
["Межбюджетные трансферты бюджетам муниципальных районов из бюджетов поселений на исполнение полномочий по осуществлению внешнего муниципального жилищного контроля в рамках непрограммных расходов органов местного самоуправления по вопросам жилищно-коммунального хозяйства","200","001 0104 Г13П704 000 000 ",237700,178275,59425]
["Иные межбюджетные трансферты","200","001 0104 Г13П704 540 000 ",237700,178275,59425]
["Расходы","200","001 0104 Г13П704 540 200 ",237700,178275,59425]
["Безвозмездные перечисления бюджетам","200","001 0104 Г13П704 540 250 ",237700,178275,59425]
["Перечисления другим бюджетам бюджетной системы Российской Федерации","200","001 0104 Г13П704 540 251 ",237700,178275,59425]
["Резервные фонды","200","001 0111 0000000 000 000 ",258327,"-",258327]
["Непрограммные расходы органов местного самоуправления по решению общегосударственных вопросов","200","001 0111 Г210000 000 000 ",223327,"-",223327]
["Резервный фонд администрации  в рамках непрограммных расходов  органов местного самоуправления по решению общегосударственных вопросов","200","001 0111 Г21Г101 000 000 ",223327,"-",223327]
["Резервные средства","200","001 0111 Г21Г101 870 000 ",223327,"-",223327]
["Расходы","200","001 0111 Г21Г101 870 200 ",223327,"-",223327]
["Прочие расходы","200","001 0111 Г21Г101 870 290 ",223327,"-",223327]
["Подпрограмма \"Предупреждение чрезвычайных ситуаций, защита населения и территорий от чрезвычайных ситуаций природного и техногенного характера, развитие гражданской обороны, обеспечение пожарной безопасности и безопасности на водных объектах\" муниципальной программы \"Безопасность в МО \"Город Пикалево\"","200","001 0111 П410000 000 000 ",35000,"-",35000]
["Резервный фонд администрации по ликвидации чрезвычайных ситуаций природного и техногенного характера и стихийных бедствий  в рамках подпрограммы \"Предупреждение чрезвычайных ситуаций, защита населения и территорий от чрезвычайных ситуаций природного и техногенного характера, развитие гражданской обороны, обеспечение пожарной безопасности и безопасности на водных объектах\" муниципальной  программы \"Безопасность в МО \"Город Пикалево\"","200","001 0111 П41П104 000 000 ",35000,"-",35000]
["Резервные средства","200","001 0111 П41П104 870 000 ",35000,"-",35000]
["Расходы","200","001 0111 П41П104 870 200 ",35000,"-",35000]
["Прочие расходы","200","001 0111 П41П104 870 290 ",35000,"-",35000]
["Другие общегосударственные вопросы","200","001 0113 0000000 000 000 ",23787770.190000001,13750971.67,10036798.520000001]
["Непрограммные расходы органов местного самоуправления по решению общегосударственных вопросов","200","001 0113 Г210000 000 000 ",15834978.189999999,12680485.32,3154492.8699999992]
["Обеспечение деятельности муниципальных казенных учреждений в рамках непрограммных расходов  органов местного самоуправления по решению общегосударственных вопросов","200","001 0113 Г21Г016 000 000 ",7484189,5028072.4400000004,2456116.5599999996]
["Фонд оплаты труда казенных учреждений и взносы по обязательному социальному страхованию","200","001 0113 Г21Г016 111 000 ",3251915.45,2215666.33,1036249.1200000001]
["Расходы","200","001 0113 Г21Г016 111 200 ",3251915.45,2215666.33,1036249.1200000001]
["Оплата труда и начисления на выплаты по оплате труда","200","001 0113 Г21Г016 111 210 ",3251915.45,2215666.33,1036249.1200000001]
["Заработная плата","200","001 0113 Г21Г016 111 211 ",2497572.64,1706356.4,791216.24000000022]
["Начисления на выплаты по оплате труда","200","001 0113 Г21Г016 111 213 ",754342.81,509309.93,245032.88000000006]
["Иные выплаты персоналу казенных учреждений, за исключением фонда оплаты труда","200","001 0113 Г21Г016 112 000 ",35700,20200,15500]
["Расходы","200","001 0113 Г21Г016 112 200 ",35700,20200,15500]
["Оплата труда и начисления на выплаты по оплате труда","200","001 0113 Г21Г016 112 210 ",26400,18300,8100]
["Прочие выплаты","200","001 0113 Г21Г016 112 212 ",26400,18300,8100]
["Оплата работ, услуг","200","001 0113 Г21Г016 112 220 ",9300,1900,7400]
["Прочие работы, услуги","200","001 0113 Г21Г016 112 226 ",9300,1900,7400]
["Закупка товаров, работ, услуг в сфере информационно-коммуникационных технологий","200","001 0113 Г21Г016 242 000 ",1010581,624838.32999999996,385742.67000000004]
["Расходы","200","001 0113 Г21Г016 242 200 ",592901,396728.44,196172.56]
["Оплата работ, услуг","200","001 0113 Г21Г016 242 220 ",592901,396728.44,196172.56]
["Услуги связи","200","001 0113 Г21Г016 242 221 ",397728,243003.82,154724.18]
["Работы, услуги по содержанию имущества","200","001 0113 Г21Г016 242 225 ",25760,3755.08,22004.92]
["Прочие работы, услуги","200","001 0113 Г21Г016 242 226 ",169413,149969.54,19443.459999999992]
["Поступление нефинансовых активов","200","001 0113 Г21Г016 242 300 ",417680,228109.89,189570.11]
["Увеличение стоимости основных средств","200","001 0113 Г21Г016 242 310 ",121980,31945.89,90034.11]
["Увеличение стоимости материальных запасов","200","001 0113 Г21Г016 242 340 ",295700,196164,99536]
["Прочая закупка товаров, работ и услуг для обеспечения государственных (муниципальных) нужд","200","001 0113 Г21Г016 244 000 ",3181376.55,2164011.58,1017364.9699999997]
["Расходы","200","001 0113 Г21Г016 244 200 ",2290039.5499999998,1675905.41,614134.1399999999]
["Оплата работ, услуг","200","001 0113 Г21Г016 244 220 ",2175119.5499999998,1614347.41,560772.1399999999]
["Услуги связи","200","001 0113 Г21Г016 244 221 ",48480,33063.050000000003,15416.949999999997]
["Коммунальные услуги","200","001 0113 Г21Г016 244 223 ",726746,611793.87,114952.13]
["Арендная плата за пользование имуществом","200","001 0113 Г21Г016 244 224 ",81883,81833,50]
["Работы, услуги по содержанию имущества","200","001 0113 Г21Г016 244 225 ",684216,464086.14,220129.86]
["Прочие работы, услуги","200","001 0113 Г21Г016 244 226 ",633794.55000000005,423571.35,210223.20000000007]
["Прочие расходы","200","001 0113 Г21Г016 244 290 ",114920,61558,53362]
["Поступление нефинансовых активов","200","001 0113 Г21Г016 244 300 ",891337,488106.17,403230.83]
["Увеличение стоимости основных средств","200","001 0113 Г21Г016 244 310 ",48400,5279.11,43120.89]
["Увеличение стоимости материальных запасов","200","001 0113 Г21Г016 244 340 ",842937,482827.06,360109.94]
["Уплата прочих налогов, сборов и иных платежей","200","001 0113 Г21Г016 852 000 ",3350.86,2091.06,1259.8000000000002]
["Расходы","200","001 0113 Г21Г016 852 200 ",3350.86,2091.06,1259.8000000000002]
["Прочие расходы","200","001 0113 Г21Г016 852 290 ",3350.86,2091.06,1259.8000000000002]
["Уплата иных платежей","200","001 0113 Г21Г016 853 000 ",1265.1400000000001,1265.1400000000001,"-"]
["Расходы","200","001 0113 Г21Г016 853 200 ",1265.1400000000001,1265.1400000000001,"-"]
["Прочие расходы","200","001 0113 Г21Г016 853 290 ",1265.1400000000001,1265.1400000000001,"-"]
["Обеспечение управления активами и приватизации муниципального имущества  в рамках непрограммных расходов  органов местного самоуправления по решению общегосударственных вопросов","200","001 0113 Г21Г103 000 000 ",549942.89,280324.77,{"$f":"IF(OR(D143=\"-\",E143=D143),\"-\",D143-IF(E143=\"-\",0,E143))","v":269618.12}]
["Прочая закупка товаров, работ и услуг для обеспечения государственных (муниципальных) нужд","200","001 0113 Г21Г103 244 000 ",549942.89,280324.77,269618.12]
["Расходы","200","001 0113 Г21Г103 244 200 ",549942.89,280324.77,269618.12]
["Оплата работ, услуг","200","001 0113 Г21Г103 244 220 ",549942.89,280324.77,269618.12]
["Прочие работы, услуги","200","001 0113 Г21Г103 244 226 ",549942.89,280324.77,269618.12]
["Содержание и обслуживание объектов муниципального имущества в рамках непрограммных расходов органов местного самоуправления по решению общегосударственных вопросов","200","001 0113 Г21Г104 000 000 ",7521156.2999999998,7273507.1100000003,247649.18999999948]
["Прочая закупка товаров, работ и услуг для обеспечения государственных (муниципальных) нужд","200","001 0113 Г21Г104 244 000 ",7063460,6980647.8499999996,82812.150000000373]
["Расходы","200","001 0113 Г21Г104 244 200 ",6297988.2800000003,6215176.1299999999,82812.150000000373]
["Оплата работ, услуг","200","001 0113 Г21Г104 244 220 ",6297988.2800000003,6215176.1299999999,82812.150000000373]
["Коммунальные услуги","200","001 0113 Г21Г104 244 223 ",20000,"-",20000]
["Работы, услуги по содержанию имущества","200","001 0113 Г21Г104 244 225 ",6277988.2800000003,6215176.1299999999,62812.150000000373]
["Поступление нефинансовых активов","200","001 0113 Г21Г104 244 300 ",765471.72,765471.72,"-"]
["Увеличение стоимости основных средств","200","001 0113 Г21Г104 244 310 ",765471.72,765471.72,"-"]
["Субсидии юридическим лицам (кроме некоммерческих организаций), индивидуальным предпринимателям, физическим лицам","200","001 0113 Г21Г104 810 000 ",457696.3,292859.26,164837.03999999998]
["Расходы","200","001 0113 Г21Г104 810 200 ",457696.3,292859.26,164837.03999999998]
["Безвозмездные перечисления организациям","200","001 0113 Г21Г104 810 240 ",457696.3,292859.26,164837.03999999998]
["Безвозмездные перечисления организациям, за исключением государственных и муниципальных организаций","200","001 0113 Г21Г104 810 242 ",457696.3,292859.26,164837.03999999998]
["Ежегодный членский взнос в Ассоциацию \"Совет муниципальных образований Ленинградской области\" в рамках непрограммных расходов  органов местного самоуправления по решению общегосударственных вопросов","200","001 0113 Г21Г105 000 000 ",36655,"-",36655]
["Уплата иных платежей","200","001 0113 Г21Г105 853 000 ",36655,"-",36655]
["Расходы","200","001 0113 Г21Г105 853 200 ",36655,"-",36655]
["Прочие расходы","200","001 0113 Г21Г105 853 290 ",36655,"-",36655]
["Ежегодный членский взнос в Союз малых городов Российской Федерации в рамках непрограммных расходов  органов местного самоуправления по решению общегосударственных вопросов","200","001 0113 Г21Г106 000 000 ",21525,"-",21525]
["Уплата иных платежей","200","001 0113 Г21Г106 853 000 ",21525,"-",21525]
["Расходы","200","001 0113 Г21Г106 853 200 ",21525,"-",21525]
["Прочие расходы","200","001 0113 Г21Г106 853 290 ",21525,"-",21525]
["Обеспечение органов местного самоуправления статистической информацией в рамках непрограммных расходов  органов местного самоуправления по решению общегосударственных вопросов","200","001 0113 Г21Г107 000 000 ",83000,44071,38929]
["Прочая закупка товаров, работ и услуг для обеспечения государственных (муниципальных) нужд","200","001 0113 Г21Г107 244 000 ",83000,44071,38929]
["Расходы","200","001 0113 Г21Г107 244 200 ",83000,44071,38929]
["Оплата работ, услуг","200","001 0113 Г21Г107 244 220 ",83000,44071,38929]
["Прочие работы, услуги","200","001 0113 Г21Г107 244 226 ",83000,44071,38929]
["Мероприятия по диспансеризации лиц, замещающих муниципальные должности и должности муниципальных служащих в рамках непрограммных расходов  органов местного самоуправления по решению общегосударственных вопросов","200","001 0113 Г21Г108 000 000 ",84000,"-",84000]
["Прочая закупка товаров, работ и услуг для обеспечения государственных (муниципальных) нужд","200","001 0113 Г21Г108 244 000 ",84000,"-",84000]
["Расходы","200","001 0113 Г21Г108 244 200 ",84000,"-",84000]
["Оплата работ, услуг","200","001 0113 Г21Г108 244 220 ",84000,"-",84000]
["Прочие работы, услуги","200","001 0113 Г21Г108 244 226 ",84000,"-",84000]
["Исполнение судебных актов, вступивших в законную силу, по искам к МО \"Город Пикалево\" в рамках непрограммных расходов  органов местного самоуправления по решению общегосударственных вопросов","200","001 0113 Г21Г109 000 000 ",54510,54510,"-"]
["Исполнение судебных актов Российской Федерации и мировых соглашений по возмещению вреда, причиненного в результате незаконных действий (бездействия) органов государственной власти (государственных органов), органов местного самоуправления либо должностных лиц этих органов, а также в результате деятельности казенных учреждений","200","001 0113 Г21Г109 831 000 ",54510,54510,"-"]
["Расходы","200","001 0113 Г21Г109 831 200 ",54510,54510,"-"]
["Прочие расходы","200","001 0113 Г21Г109 831 290 ",54510,54510,"-"]
["Подпрограмма \"Обеспечение правопорядка и профилактика правонарушений\" муниципальной  программы \"Безопасность в МО \"Город Пикалево\"","200","001 0113 П420000 000 000 ",7543200,914373.55,6628826.4500000002]
["Создание в МО \"Город Пикалево\" аппаратно-программного комплекса автоматизированной информационной системы \"Безопасный город\" за счет средств областного бюджета в рамках подпрограммы \"Обеспечение правопорядка и профилактика правонарушений\" муниципальной программы \"Безопасность в МО \"Город Пикалево\"","200","001 0113 П427043 000 000 ",5700000,"-",5700000]
["Прочая закупка товаров, работ и услуг для обеспечения государственных (муниципальных) нужд","200","001 0113 П427043 244 000 ",5700000,"-",5700000]
["Расходы","200","001 0113 П427043 244 200 ",3505370,"-",3505370]
["Оплата работ, услуг","200","001 0113 П427043 244 220 ",3505370,"-",3505370]
["Прочие работы, услуги","200","001 0113 П427043 244 226 ",3505370,"-",3505370]
["Поступление нефинансовых активов","200","001 0113 П427043 244 300 ",2194630,"-",2194630]
["Увеличение стоимости основных средств","200","001 0113 П427043 244 310 ",2194630,"-",2194630]
["Профилактика безнадзорности и правонарушений несовершеннолетних за счет средств субвенции областного бюджета в рамках подпрограммы \"Обеспечение правопорядка и профилактика правонарушений\" государственной программы Ленинградской области \"Безопасность Ленинградской области\" в рамках подпрограммы \"Обеспечение правопорядка и профилактика правонарушений\" муниципальной  программы \"Безопасность в МО \"Город Пикалево\"","200","001 0113 П427133 000 000 ",555100,391025.1,164074.90000000002]
["Фонд оплаты труда государственных (муниципальных) органов и взносы по обязательному социальному страхованию","200","001 0113 П427133 121 000 ",529872,374317.09,155554.90999999997]
["Расходы","200","001 0113 П427133 121 200 ",529872,374317.09,155554.90999999997]
["Оплата труда и начисления на выплаты по оплате труда","200","001 0113 П427133 121 210 ",529872,374317.09,155554.90999999997]
["Заработная плата","200","001 0113 П427133 121 211 ",406968,297088.48,109879.52000000002]
["Начисления на выплаты по оплате труда","200","001 0113 П427133 121 213 ",122904,77228.61,45675.39]
["Иные выплаты персоналу государственных (муниципальных) органов, за исключением фонда оплаты труда","200","001 0113 П427133 122 000 ",800,200,600]
["Расходы","200","001 0113 П427133 122 200 ",800,200,600]
["Оплата труда и начисления на выплаты по оплате труда","200","001 0113 П427133 122 210 ",800,200,600]
["Прочие выплаты","200","001 0113 П427133 122 212 ",800,200,600]
["Закупка товаров, работ, услуг в сфере информационно-коммуникационных технологий","200","001 0113 П427133 242 000 ",16995,10429.540000000001,6565.4599999999991]
["Расходы","200","001 0113 П427133 242 200 ",12195,8029.54,4165.46]
["Оплата работ, услуг","200","001 0113 П427133 242 220 ",12195,8029.54,4165.46]
["Услуги связи","200","001 0113 П427133 242 221 ",12195,8029.54,4165.46]
["Поступление нефинансовых активов","200","001 0113 П427133 242 300 ",4800,2400,2400]
["Увеличение стоимости материальных запасов","200","001 0113 П427133 242 340 ",4800,2400,2400]
["Прочая закупка товаров, работ и услуг для обеспечения государственных (муниципальных) нужд","200","001 0113 П427133 244 000 ",7433,6078.47,1354.5299999999997]
["Расходы","200","001 0113 П427133 244 200 ",6400,6078.47,{"$f":"IF(OR(D207=\"-\",E207=D207),\"-\",D207-IF(E207=\"-\",0,E207))","v":321.52999999999975}]
["Оплата работ, услуг","200","001 0113 П427133 244 220 ",6400,6078.47,321.52999999999975]
["Услуги связи","200","001 0113 П427133 244 221 ",6400,6078.47,321.52999999999975]
["Поступление нефинансовых активов","200","001 0113 П427133 244 300 ",1033,"-",1033]
["Увеличение стоимости материальных запасов","200","001 0113 П427133 244 340 ",1033,"-",1033]
["Мероприятия в сфере административных правоотношений за счет средств субвенции областного бюджета в рамках подпрограммы \"Обеспечение правопорядка и профилактика правонарушений\" государственной программы Ленинградской области \"Безопасность Ленинградской области\" в рамках подпрограммы \"Обеспечение правопорядка и профилактика правонарушений\" муниципальной  программы \"Безопасность в МО \"Город Пикалево\"","200","001 0113 П427134 000 000 ",568100,373348.45,194751.55]
["Фонд оплаты труда государственных (муниципальных) органов и взносы по обязательному социальному страхованию","200","001 0113 П427134 121 000 ",529872,350687.59,179184.40999999997]
["Расходы","200","001 0113 П427134 121 200 ",529872,350687.59,179184.40999999997]
["Оплата труда и начисления на выплаты по оплате труда","200","001 0113 П427134 121 210 ",529872,350687.59,179184.40999999997]
["Заработная плата","200","001 0113 П427134 121 211 ",406968,270945.69,136022.31]
["Начисления на выплаты по оплате труда","200","001 0113 П427134 121 213 ",122904,79741.899999999994,43162.100000000006]
["Закупка товаров, работ, услуг в сфере информационно-коммуникационных технологий","200","001 0113 П427134 242 000 ",5100,"-",5100]
["Расходы","200","001 0113 П427134 242 200 ",2100,"-",2100]
["Оплата работ, услуг","200","001 0113 П427134 242 220 ",2100,"-",2100]
["Работы, услуги по содержанию имущества","200","001 0113 П427134 242 225 ",2100,"-",2100]
["Поступление нефинансовых активов","200","001 0113 П427134 242 300 ",3000,"-",3000]
["Увеличение стоимости материальных запасов","200","001 0113 П427134 242 340 ",3000,"-",3000]
["Прочая закупка товаров, работ и услуг для обеспечения государственных (муниципальных) нужд","200","001 0113 П427134 244 000 ",33128,22660.86,10467.14]
["Расходы","200","001 0113 П427134 244 200 ",27500,21009.86,6490.1399999999994]
["Оплата работ, услуг","200","001 0113 П427134 244 220 ",27500,21009.86,6490.1399999999994]
["Услуги связи","200","001 0113 П427134 244 221 ",27500,21009.86,6490.1399999999994]
["Поступление нефинансовых активов","200","001 0113 П427134 244 300 ",5628,1651,3977]
["Увеличение стоимости материальных запасов","200","001 0113 П427134 244 340 ",5628,1651,3977]
["Создание в МО \"Город Пикалево\"  аппаратно-программного комплекса автоматизированной информационной системы \"Безопасный город\" в рамках подпрограммы \"Обеспечение правопорядка и профилактика правонарушений\" муниципальной  программы \"Безопасность в МО \"Город Пикалево\"","200","001 0113 П42П105 000 000 ",720000,150000,570000]
["Прочая закупка товаров, работ и услуг для обеспечения государственных (муниципальных) нужд","200","001 0113 П42П105 244 000 ",720000,150000,570000]
["Расходы","200","001 0113 П42П105 244 200 ",500540,150000,350540]
["Оплата работ, услуг","200","001 0113 П42П105 244 220 ",500540,150000,350540]
["Прочие работы, услуги","200","001 0113 П42П105 244 226 ",500540,150000,350540]
["Поступление нефинансовых активов","200","001 0113 П42П105 244 300 ",219460,"-",219460]
["Увеличение стоимости основных средств","200","001 0113 П42П105 244 310 ",219460,"-",219460]
["Подпрограмма \"Развитие муниципальной службы и повышение квалификации кадров органов местного самоуправления МО \"Город Пикалево\" муниципальной  программы \"Развитие муниципального управления и информационного общества в МО \"Город Пикалево\"","200","001 0113 П610000 000 000 ",146500,38475,108025]
["Организация повышения квалификации лиц, замещающих должности муниципальной службы в органах местного самоуправления МО \"Город Пикалево\", и лиц, зачисленных в кадровый резерв администрации МО \"Город Пикалево\" в рамках подпрограммы \"Развитие муниципальной службы и повышение квалификации кадров органов местного самоуправления МО \"Город Пикалево\" муниципальной  программы \"Развитие муниципального управления и информационного общества в МО \"Город Пикалево\"","200","001 0113 П61П112 000 000 ",146500,38475,108025]
["Прочая закупка товаров, работ и услуг для обеспечения государственных (муниципальных) нужд","200","001 0113 П61П112 244 000 ",146500,38475,108025]
["Расходы","200","001 0113 П61П112 244 200 ",146500,38475,108025]
["Оплата работ, услуг","200","001 0113 П61П112 244 220 ",146500,38475,108025]
["Прочие работы, услуги","200","001 0113 П61П112 244 226 ",146500,38475,108025]
["Подпрограмма \"Информирование населения о деятельности органов местного самоуправления МО \"Город Пикалево\" муниципальной  программы \"Развитие муниципального управления и информационного общества в МО \"Город Пикалево\"","200","001 0113 П620000 000 000 ",263092,117637.8,145454.20000000001]
["Организация освещения  в печатных и электронных средствах массовой информации, в сети Интернет деятельности органов местного самоуправления, актуальных вопросов и событий политической, общественной, экономической, культурной, спортивной жизни в рамках подпрограммы \"Информирование населения о деятельности органов местного самоуправления МО \"Город Пикалево\" муниципальной  программы \"Развитие муниципального управления и информационного общества в МО \"Город Пикалево\"","200","001 0113 П62П016 000 000 ",263092,117637.8,145454.20000000001]
["Закупка товаров, работ, услуг в сфере информационно-коммуникационных технологий","200","001 0113 П62П016 242 000 ",263092,117637.8,145454.20000000001]
["Расходы","200","001 0113 П62П016 242 200 ",263092,117637.8,145454.20000000001]
["Оплата работ, услуг","200","001 0113 П62П016 242 220 ",263092,117637.8,145454.20000000001]
["Прочие работы, услуги","200","001 0113 П62П016 242 226 ",263092,117637.8,145454.20000000001]
["НАЦИОНАЛЬНАЯ ОБОРОНА","200","001 0200 0000000 000 000 ",921400,687185.04,234214.95999999996]
["Мобилизационная и вневойсковая подготовка","200","001 0203 0000000 000 000 ",921400,687185.04,234214.95999999996]
["Непрограммные расходы органов местного самоуправления по вопросам национальной обороны","200","001 0203 Г220000 000 000 ",921400,687185.04,234214.95999999996]
["Осуществление первичного воинского учета на территориях, где отсутствуют военные комиссариаты за счет средств субвенции федерального бюджета  в рамках непрограммных расходов органов местного самоуправления по вопросам национальной обороны","200","001 0203 Г225118 000 000 ",921400,687185.04,234214.95999999996]
["Фонд оплаты труда государственных (муниципальных) органов и взносы по обязательному социальному страхованию","200","001 0203 Г225118 121 000 ",887807,660655.59,227151.41000000003]
["Расходы","200","001 0203 Г225118 121 200 ",887807,660655.59,227151.41000000003]
["Оплата труда и начисления на выплаты по оплате труда","200","001 0203 Г225118 121 210 ",887807,660655.59,227151.41000000003]
["Заработная плата","200","001 0203 Г225118 121 211 ",681880,512518.9,169361.09999999998]
["Начисления на выплаты по оплате труда","200","001 0203 Г225118 121 213 ",205927,148136.69,57790.31]
["Закупка товаров, работ, услуг в сфере информационно-коммуникационных технологий","200","001 0203 Г225118 242 000 ",27893,20829.45,7063.5499999999993]
["Расходы","200","001 0203 Г225118 242 200 ",19367,12303.45,7063.5499999999993]
["Оплата работ, услуг","200","001 0203 Г225118 242 220 ",19367,12303.45,7063.5499999999993]
["Услуги связи","200","001 0203 Г225118 242 221 ",19367,12303.45,7063.5499999999993]
["Поступление нефинансовых активов","200","001 0203 Г225118 242 300 ",8526,8526,"-"]
["Увеличение стоимости материальных запасов","200","001 0203 Г225118 242 340 ",8526,8526,"-"]
["Прочая закупка товаров, работ и услуг для обеспечения государственных (муниципальных) нужд","200","001 0203 Г225118 244 000 ",5700,5700,"-"]
["Расходы","200","001 0203 Г225118 244 200 ",5700,5700,"-"]
["Оплата работ, услуг","200","001 0203 Г225118 244 220 ",5700,5700,"-"]
["Услуги связи","200","001 0203 Г225118 244 221 ",5700,5700,"-"]
["НАЦИОНАЛЬНАЯ БЕЗОПАСНОСТЬ И ПРАВООХРАНИТЕЛЬНАЯ ДЕЯТЕЛЬНОСТЬ","200","001 0300 0000000 000 000 ",361762,119194.5,242567.5]
["Защита населения и территории от чрезвычайных ситуаций природного и техногенного характера, гражданская оборона","200","001 0309 0000000 000 000 ",361762,119194.5,242567.5]
["Подпрограмма \"Предупреждение чрезвычайных ситуаций, защита населения и территорий от чрезвычайных ситуаций природного и техногенного характера, развитие гражданской обороны, обеспечение пожарной безопасности и безопасности на водных объектах\" муниципальной программы \"Безопасность в МО \"Город Пикалево\"","200","001 0309 П410000 000 000 ",361762,119194.5,242567.5]
["Обеспечение первичных мер пожарной безопасности  в рамках подпрограммы \"Предупреждение чрезвычайных ситуаций, защита населения и территорий от чрезвычайных ситуаций природного и техногенного характера, развитие гражданской обороны, обеспечение пожарной безопасности и безопасности на водных объектах\" муниципальной  программы \"Безопасность в МО \"Город Пикалево\"","200","001 0309 П41П103 000 000 ",197872,61694.5,{"$f":"IF(OR(D271=\"-\",E271=D271),\"-\",D271-IF(E271=\"-\",0,E271))","v":136177.5}]
["Прочая закупка товаров, работ и услуг для обеспечения государственных (муниципальных) нужд","200","001 0309 П41П103 244 000 ",197872,61694.5,136177.5]
["Расходы","200","001 0309 П41П103 244 200 ",197872,61694.5,136177.5]
["Оплата работ, услуг","200","001 0309 П41П103 244 220 ",197872,61694.5,136177.5]
["Работы, услуги по содержанию имущества","200","001 0309 П41П103 244 225 ",197872,61694.5,136177.5]
["Субсидии на обеспечение мероприятий по предупреждению и ликвидации последствий чрезвычайных ситуаций и стихийных бедствий в рамках подпрограммы \"Предупреждение чрезвычайных ситуаций, защита населения и территорий от чрезвычайных ситуаций природного и техногенного характера, развитие гражданской обороны, обеспечение пожарной безопасности и безопасности на водных объектах\" муниципальной  программы \"Безопасность в МО \"Город Пикалево\"","200","001 0309 П41П509 000 000 ",93890,"-",93890]
["Субсидии бюджетным учреждениям на иные цели","200","001 0309 П41П509 612 000 ",93890,"-",93890]
["Расходы","200","001 0309 П41П509 612 200 ",93890,"-",93890]
["Безвозмездные перечисления организациям","200","001 0309 П41П509 612 240 ",93890,"-",93890]
["Безвозмездные перечисления государственным и муниципальным организациям","200","001 0309 П41П509 612 241 ",93890,"-",93890]
["Межбюджетные трансферты бюджетам муниципальных районов из бюджетов поселений на осуществление полномочий в области создания, содержания и организации деятельности аварийно-спасательных служб и (или) аварийно-спасательных формирований  в рамках подпрограммы \"Предупреждение чрезвычайных ситуаций, защита населения и территорий от чрезвычайных ситуаций природного и техногенного характера, развитие гражданской обороны, обеспечение пожарной безопасности и безопасности на водных объектах\" муниципальной  программы \"Безопасность в МО \"Город Пикалево\"","200","001 0309 П41П701 000 000 ",50000,37500,12500]
["Иные межбюджетные трансферты","200","001 0309 П41П701 540 000 ",50000,37500,12500]
["Расходы","200","001 0309 П41П701 540 200 ",50000,37500,12500]
["Безвозмездные перечисления бюджетам","200","001 0309 П41П701 540 250 ",50000,37500,12500]
["Перечисления другим бюджетам бюджетной системы Российской Федерации","200","001 0309 П41П701 540 251 ",50000,37500,12500]
["Межбюджетные трансферты бюджетам муниципальных районов из бюджетов поселений на осуществление полномочий в области гражданской обороны, защиты населения и территории от чрезвычайных ситуаций природного и техногенного характера в части подготовки и обучения населения в области гражданской обороны, способам защиты и действиям в чрезвычайных ситуациях  в рамках подпрограммы \"Предупреждение чрезвычайных ситуаций, защита населения и территорий от чрезвычайных ситуаций природного и техногенного характера, развитие гражданской обороны, обеспечение пожарной безопасности и безопасности на водных объектах\" муниципальной  программы \"Безопасность в МО \"Город Пикалево\"","200","001 0309 П41П702 000 000 ",20000,20000,"-"]
["Иные межбюджетные трансферты","200","001 0309 П41П702 540 000 ",20000,20000,"-"]
["Расходы","200","001 0309 П41П702 540 200 ",20000,20000,"-"]
["Безвозмездные перечисления бюджетам","200","001 0309 П41П702 540 250 ",20000,20000,"-"]
["Перечисления другим бюджетам бюджетной системы Российской Федерации","200","001 0309 П41П702 540 251 ",20000,20000,"-"]
["НАЦИОНАЛЬНАЯ ЭКОНОМИКА","200","001 0400 0000000 000 000 ",64806658.299999997,36225339.979999997,28581318.32]
["Транспорт","200","001 0408 0000000 000 000 ",1629100,1201000,428100]
["Муниципальная программа \"Развитие транспортного комплекса в МО \"Город Пикалево\"","200","001 0408 П300000 000 000 ",1629100,1201000,428100]
["Субсидии юридическим лицам, осуществляющим пассажирские перевозки автомобильным транспортом общего пользования в МО \"Город Пикалево\" в рамках муниципальной программы \"Развитие транспортного комплекса в МО \"Город Пикалево\"","200","001 0408 П30П603 000 000 ",1629100,1201000,428100]
["Субсидии юридическим лицам (кроме некоммерческих организаций), индивидуальным предпринимателям, физическим лицам","200","001 0408 П30П603 810 000 ",1629100,1201000,428100]
["Расходы","200","001 0408 П30П603 810 200 ",1629100,1201000,428100]
["Безвозмездные перечисления организациям","200","001 0408 П30П603 810 240 ",1629100,1201000,428100]
["Безвозмездные перечисления организациям, за исключением государственных и муниципальных организаций","200","001 0408 П30П603 810 242 ",1629100,1201000,428100]
["Дорожное хозяйство (дорожные фонды)","200","001 0409 0000000 000 000 ",50419148.299999997,28634171.98,21784976.319999997]
["Непрограммные расходы органов местного самоуправления по вопросам национальной экономики","200","001 0409 Г240000 000 000 ",30558674.030000001,12684454.15,17874219.880000003]
["Обеспечение мероприятий по строительству объектов Комплексного инвестиционного плана за счет средств вышестоящих бюджетов в рамках непрограммных расходов органов местного самоуправления по вопросам национальной экономики","200","001 0409 Г240998 000 000 ",30538674.030000001,12664454.15,17874219.880000003]
["Бюджетные инвестиции в объекты капитального строительства государственной (муниципальной) собственности","200","001 0409 Г240998 414 000 ",30538674.030000001,12664454.15,17874219.880000003]
["Расходы","200","001 0409 Г240998 414 200 ",154574.37,"-",154574.37]
["Оплата работ, услуг","200","001 0409 Г240998 414 220 ",154574.37,"-",154574.37]
["Прочие работы, услуги","200","001 0409 Г240998 414 226 ",154574.37,"-",154574.37]
["Поступление нефинансовых активов","200","001 0409 Г240998 414 300 ",30384099.66,12664454.15,17719645.509999998]
["Увеличение стоимости основных средств","200","001 0409 Г240998 414 310 ",30384099.66,12664454.15,17719645.509999998]
["Обеспечение мероприятий по строительству объектов Комплексного инвестиционного плана в рамках непрограммных расходов  органов местного самоуправления по вопросам национальной экономики","200","001 0409 Г24Г115 000 000 ",20000,20000,"-"]
["Бюджетные инвестиции в объекты капитального строительства государственной (муниципальной) собственности","200","001 0409 Г24Г115 414 000 ",20000,20000,"-"]
["Поступление нефинансовых активов","200","001 0409 Г24Г115 414 300 ",20000,20000,"-"]
["Увеличение стоимости основных средств","200","001 0409 Г24Г115 414 310 ",20000,20000,"-"]
["Муниципальная программа \"Развитие транспортного комплекса в МО \"Город Пикалево\"","200","001 0409 П300000 000 000 ",19860474.27,15949717.83,3910756.4399999995]
["Капитальный ремонт и ремонт дворовых территорий многоквартирных домов, проездов к дворовым территориям многоквартирных домов населенных пунктов Ленинградской области в рамках муниципальной программы \"Развитие транспортного комплекса в МО \"Город Пикалево\"","200","001 0409 П307013 000 000 ",828100,828100,"-"]
["Прочая закупка товаров, работ и услуг для обеспечения государственных (муниципальных) нужд","200","001 0409 П307013 244 000 ",828100,828100,"-"]
["Расходы","200","001 0409 П307013 244 200 ",828100,828100,"-"]
["Оплата работ, услуг","200","001 0409 П307013 244 220 ",828100,828100,"-"]
["Работы, услуги по содержанию имущества","200","001 0409 П307013 244 225 ",828100,828100,"-"]
["Капитальный ремонт и ремонт автомобильных дорог общего пользования местного значения в рамках муниципальной программы \"Развитие транспортного комплекса в МО \"Город Пикалево\"","200","001 0409 П307014 000 000 ",1578764.6,1526958.41,51806.190000000177]
["Прочая закупка товаров, работ и услуг для обеспечения государственных (муниципальных) нужд","200","001 0409 П307014 244 000 ",1578764.6,1526958.41,51806.190000000177]
["Расходы","200","001 0409 П307014 244 200 ",1578764.6,1526958.41,51806.190000000177]
["Оплата работ, услуг","200","001 0409 П307014 244 220 ",1578764.6,1526958.41,51806.190000000177]
["Работы, услуги по содержанию имущества","200","001 0409 П307014 244 225 ",1578764.6,1526958.41,51806.190000000177]
["Капитальный ремонт и ремонт автомобильных дорог общего пользования местного значения, имеющих приоритетный социально-значимый характер, в рамках муниципальной программы \"Развитие транспортного комплекса в МО \"Город Пикалево\"","200","001 0409 П307420 000 000 ",9473684.6699999999,8005264.6699999999,1468420]
["Прочая закупка товаров, работ и услуг для обеспечения государственных (муниципальных) нужд","200","001 0409 П307420 244 000 ",9473684.6699999999,8005264.6699999999,1468420]
["Расходы","200","001 0409 П307420 244 200 ",9473684.6699999999,8005264.6699999999,1468420]
["Оплата работ, услуг","200","001 0409 П307420 244 220 ",9473684.6699999999,8005264.6699999999,1468420]
["Работы, услуги по содержанию имущества","200","001 0409 П307420 244 225 ",9473684.6699999999,8005264.6699999999,1468420]
["Мероприятия по содержанию сети автомобильных дорог общего пользования местного значения в рамках муниципальной программы \"Развитие транспортного комплекса в МО \"Город Пикалево\"","200","001 0409 П30П107 000 000 ",7535235,5197304.75,2337930.25]
["Прочая закупка товаров, работ и услуг для обеспечения государственных (муниципальных) нужд","200","001 0409 П30П107 244 000 ",7535235,5197304.75,2337930.25]
["Расходы","200","001 0409 П30П107 244 200 ",7535235,5197304.75,2337930.25]
["Оплата работ, услуг","200","001 0409 П30П107 244 220 ",7535235,5197304.75,2337930.25]
["Работы, услуги по содержанию имущества","200","001 0409 П30П107 244 225 ",7116347,5001751.75,2114595.25]
["Прочие работы, услуги","200","001 0409 П30П107 244 226 ",418888,195553,223335]
["Капитальный ремонт и ремонт автомобильных дорог общего пользования местного значения  в рамках муниципальной программы \"Развитие   транспортного комплекса в МО \"Город Пикалево\"","200","001 0409 П30П108 000 000 ",187490,134890,52600]
["Прочая закупка товаров, работ и услуг для обеспечения государственных (муниципальных) нужд","200","001 0409 П30П108 244 000 ",187490,134890,{"$f":"IF(OR(D335=\"-\",E335=D335),\"-\",D335-IF(E335=\"-\",0,E335))","v":52600}]
["Расходы","200","001 0409 П30П108 244 200 ",187490,134890,52600]
["Оплата работ, услуг","200","001 0409 П30П108 244 220 ",187490,134890,52600]
["Прочие работы, услуги","200","001 0409 П30П108 244 226 ",187490,134890,52600]
["Капитальный ремонт и ремонт дворовых территорий многоквартирных домов и проездов  к дворовым территориям многоквартирных домов в рамках муниципальной программы \"Развитие транспортного комплекса в МО \"Город Пикалево\"","200","001 0409 П30П109 000 000 ",257200,257200,"-"]
["Прочая закупка товаров, работ и услуг для обеспечения государственных (муниципальных) нужд","200","001 0409 П30П109 244 000 ",257200,257200,"-"]
["Расходы","200","001 0409 П30П109 244 200 ",257200,257200,"-"]
["Оплата работ, услуг","200","001 0409 П30П109 244 220 ",257200,257200,"-"]
["Работы, услуги по содержанию имущества","200","001 0409 П30П109 244 225 ",257200,257200,"-"]
["Другие вопросы в области национальной экономики","200","001 0412 0000000 000 000 ",12758410,6390168,6368242]
["Непрограммные расходы органов местного самоуправления по вопросам национальной экономики","200","001 0412 Г240000 000 000 ",5202910,3030000,2172910]
["Мероприятия в области строительства, архитектуры и градостроительства в рамках непрограммных расходов органов местного самоуправления по вопросам национальной экономики","200","001 0412 Г24Г110 000 000 ",5000000,3000000,2000000]
["Прочая закупка товаров, работ и услуг для обеспечения государственных (муниципальных) нужд","200","001 0412 Г24Г110 244 000 ",5000000,3000000,2000000]
["Расходы","200","001 0412 Г24Г110 244 200 ",5000000,3000000,2000000]
["Оплата работ, услуг","200","001 0412 Г24Г110 244 220 ",5000000,3000000,2000000]
["Прочие работы, услуги","200","001 0412 Г24Г110 244 226 ",5000000,3000000,2000000]
["Мероприятия по землеустройству и землепользованию в рамках непрограммных расходов органов местного самоуправления по вопросам национальной экономики","200","001 0412 Г24Г111 000 000 ",202910,30000,172910]
["Прочая закупка товаров, работ и услуг для обеспечения государственных (муниципальных) нужд","200","001 0412 Г24Г111 244 000 ",202910,30000,172910]
["Расходы","200","001 0412 Г24Г111 244 200 ",202910,30000,172910]
["Оплата работ, услуг","200","001 0412 Г24Г111 244 220 ",202910,30000,172910]
["Прочие работы, услуги","200","001 0412 Г24Г111 244 226 ",202910,30000,172910]
["Муниципальная программа \"Развитие малого и среднего предпринимательства на территории монопрофильного муниципального образования \"Город Пикалево\" (моногорода)","200","001 0412 П700000 000 000 ",7555500,3360168,4195332]
["Субсидии на софинансирование текущей деятельности бизнес-инкубаторов, на создание которых были предоставлены средства субсидий федерального бюджета, за счет средств областного бюджета в рамках муниципальной программы \"Развитие малого и среднего предпринимательства на территории МО \"Город Пикалево\"","200","001 0412 П707424 000 000 ",2500000,602168,1897832]
["Субсидии некоммерческим организациям (за исключением государственных (муниципальных) учреждений)","200","001 0412 П707424 630 000 ",2500000,602168,1897832]
["Расходы","200","001 0412 П707424 630 200 ",2500000,602168,1897832]
["Безвозмездные перечисления организациям","200","001 0412 П707424 630 240 ",2500000,602168,1897832]
["Безвозмездные перечисления организациям, за исключением государственных и муниципальных организаций","200","001 0412 П707424 630 242 ",2500000,602168,1897832]
["Субсидии для софинансирования муниципальных программ поддержки и развития субъектов малого и среднего предпринимательства за счет средств областного бюджета в рамках муниципальной программы \"Развитие малого и среднего предпринимательства на территории монопрофильного муниципального образования \"Город Пикалево\" (моногорода)","200","001 0412 П707425 000 000 ",4900000,2700000,2200000]
["Субсидии юридическим лицам (кроме некоммерческих организаций), индивидуальным предпринимателям, физическим лицам","200","001 0412 П707425 810 000 ",4900000,2700000,2200000]
["Расходы","200","001 0412 П707425 810 200 ",4900000,2700000,2200000]
["Безвозмездные перечисления организациям","200","001 0412 П707425 810 240 ",4900000,2700000,2200000]
["Безвозмездные перечисления организациям, за исключением государственных и муниципальных организаций","200","001 0412 П707425 810 242 ",4900000,2700000,2200000]
["Субсидии на имущественную поддержку предпринимательства в рамках муниципальной программы \"Развитие малого и среднего предпринимательства на территории монопрофильного муниципального образования \"Город Пикалево\" (моногорода)","200","001 0412 П70П502 000 000 ",33000,33000,"-"]
["Субсидии некоммерческим организациям (за исключением государственных (муниципальных) учреждений)","200","001 0412 П70П502 630 000 ",33000,33000,"-"]
["Расходы","200","001 0412 П70П502 630 200 ",33000,33000,"-"]
["Безвозмездные перечисления организациям","200","001 0412 П70П502 630 240 ",33000,33000,"-"]
["Безвозмездные перечисления организациям, за исключением государственных и муниципальных организаций","200","001 0412 П70П502 630 242 ",33000,33000,"-"]
["Субсидии на информационную, консультационную поддержку субъектов малого и среднего предпринимательства в рамках муниципальной программы \"Развитие малого и среднего предпринимательства на территории монопрофильного муниципального образования \"Город Пикалево\" (моногорода)","200","001 0412 П70П503 000 000 ",67000,"-",67000]
["Субсидии некоммерческим организациям (за исключением государственных (муниципальных) учреждений)","200","001 0412 П70П503 630 000 ",67000,"-",67000]
["Расходы","200","001 0412 П70П503 630 200 ",67000,"-",67000]
["Безвозмездные перечисления организациям","200","001 0412 П70П503 630 240 ",67000,"-",67000]
["Безвозмездные перечисления организациям, за исключением государственных и муниципальных организаций","200","001 0412 П70П503 630 242 ",67000,"-",67000]
["Субсидии для софинансирования муниципальных программ поддержки и развития субъектов малого и среднего предпринимательства за счет средств местного бюджета в рамках муниципальной программы \"Развитие малого и среднего предпринимательства на территории монопрофильного муниципального образования \"Город Пикалево\" (моногорода)","200","001 0412 П70П616 000 000 ",55500,25000,30500]
["Субсидии юридическим лицам (кроме некоммерческих организаций), индивидуальным предпринимателям, физическим лицам","200","001 0412 П70П616 810 000 ",55500,25000,30500]
["Расходы","200","001 0412 П70П616 810 200 ",55500,25000,30500]
["Безвозмездные перечисления организациям","200","001 0412 П70П616 810 240 ",55500,25000,30500]
["Безвозмездные перечисления организациям, за исключением государственных и муниципальных организаций","200","001 0412 П70П616 810 242 ",55500,25000,30500]
["ЖИЛИЩНО-КОММУНАЛЬНОЕ ХОЗЯЙСТВО","200","001 0500 0000000 000 000 ",125251348.81,47417196.549999997,77834152.260000005]
["Жилищное хозяйство","200","001 0501 0000000 000 000 ",74557635.340000004,33400886.190000001,41156749.150000006]
["Непрограммные расходы органов местного самоуправления по вопросам жилищно-коммунального хозяйства","200","001 0501 Г250000 000 000 ",2180000,1690119.46,489880.54000000004]
["Мероприятия по капитальному ремонту многоквартирных домов в рамках непрограммных расходов органов местного самоуправления по вопросам жилищного-коммунального хозяйства","200","001 0501 Г25Г122 000 000 ",2180000,1690119.46,489880.54000000004]
["Закупка товаров, работ, услуг в целях капитального ремонта государственного (муниципального) имущества","200","001 0501 Г25Г122 243 000 ",2180000,1690119.46,489880.54000000004]
["Расходы","200","001 0501 Г25Г122 243 200 ",2180000,1690119.46,489880.54000000004]
["Оплата работ, услуг","200","001 0501 Г25Г122 243 220 ",2180000,1690119.46,489880.54000000004]
["Работы, услуги по содержанию имущества","200","001 0501 Г25Г122 243 225 ",2180000,1690119.46,489880.54000000004]
["Подпрограмма \"Переселение граждан из аварийного и (или) непригодного для проживания жилищного фонда\" муниципальной программы \"Обеспечение качественным жильем граждан в МО \"Город Пикалево\"","200","001 0501 П230000 000 000 ",72377635.340000004,31710766.73,40666868.609999999]
["Обеспечение мероприятий по переселению граждан из аварийного жилищного фонда в рамках подпрограммы \"Переселение граждан из аварийного и (или) непригодного для проживания жилищного фонда\" муниципальной программы \"Обеспечение качественным жильем граждан в МО \"Город Пикалево\"","200","001 0501 П237077 000 000 ",70468370.5,31710766.73,38757603.769999996]
["Бюджетные инвестиции в объекты капитального строительства государственной (муниципальной) собственности","200","001 0501 П237077 414 000 ",70468370.5,31710766.73,38757603.769999996]
["Поступление нефинансовых активов","200","001 0501 П237077 414 300 ",70468370.5,31710766.73,38757603.769999996]
["Увеличение стоимости основных средств","200","001 0501 П237077 414 310 ",70468370.5,31710766.73,38757603.769999996]
["Обеспечение мероприятий по сносу расселенных аварийных домов в рамках подпрограммы \"Переселение граждан из аварийного и (или) непригодного для проживания жилищного фонда\" муниципальной программы \"Обеспечение качественным жильем граждан в МО \"Город Пикалево\"","200","001 0501 П23П102 000 000 ",1909264.84,"-",1909264.84]
["Прочая закупка товаров, работ и услуг для обеспечения государственных (муниципальных) нужд","200","001 0501 П23П102 244 000 ",1909264.84,"-",1909264.84]
["Расходы","200","001 0501 П23П102 244 200 ",1909264.84,"-",1909264.84]
["Оплата работ, услуг","200","001 0501 П23П102 244 220 ",1909264.84,"-",1909264.84]
["Прочие работы, услуги","200","001 0501 П23П102 244 226 ",1909264.84,"-",{"$f":"IF(OR(D399=\"-\",E399=D399),\"-\",D399-IF(E399=\"-\",0,E399))","v":1909264.84}]
["Коммунальное хозяйство","200","001 0502 0000000 000 000 ",37645420.549999997,6330726.7800000003,31314693.769999996]
["Непрограммные расходы органов местного самоуправления по вопросам жилищно-коммунального хозяйства","200","001 0502 Г250000 000 000 ",15398492.550000001,5630726.7800000003,9767765.7699999996]
["Обеспечение мероприятий по строительству объектов Комплексного инвестиционного плана за счет средств вышестоящих бюджетов в рамках непрограммных расходов органов местного самоуправления по вопросам жилищно-коммунального хозяйства","200","001 0502 Г250998 000 000 ",9521089.5500000007,"-",9521089.5500000007]
["Бюджетные инвестиции в объекты капитального строительства государственной (муниципальной) собственности","200","001 0502 Г250998 414 000 ",9521089.5500000007,"-",9521089.5500000007]
["Расходы","200","001 0502 Г250998 414 200 ",605023.59,"-",605023.59]
["Оплата работ, услуг","200","001 0502 Г250998 414 220 ",605023.59,"-",605023.59]
["Прочие работы, услуги","200","001 0502 Г250998 414 226 ",605023.59,"-",605023.59]
["Поступление нефинансовых активов","200","001 0502 Г250998 414 300 ",8916065.9600000009,"-",8916065.9600000009]
["Увеличение стоимости основных средств","200","001 0502 Г250998 414 310 ",8916065.9600000009,"-",8916065.9600000009]
["Субсидии на оплату кредита и процентов по нему перед ОАО \"ЛОКС\" в рамках непрограммных расходов органов местного самоуправления по вопросам жилищного-коммунального хозяйства","200","001 0502 Г25Г605 000 000 ",5877403,5630726.7800000003,246676.21999999974]
["Субсидии юридическим лицам (кроме некоммерческих организаций), индивидуальным предпринимателям, физическим лицам","200","001 0502 Г25Г605 810 000 ",5877403,5630726.7800000003,246676.21999999974]
["Расходы","200","001 0502 Г25Г605 810 200 ",5877403,5630726.7800000003,246676.21999999974]
["Безвозмездные перечисления организациям","200","001 0502 Г25Г605 810 240 ",5877403,5630726.7800000003,246676.21999999974]
["Безвозмездные перечисления государственным и муниципальным организациям","200","001 0502 Г25Г605 810 241 ",5877403,5630726.7800000003,246676.21999999974]
["Подпрограмма \"Развитие коммунальной и жилищной инфраструктуры в МО \"Город Пикалево\" муниципальной программы \"Развитие коммунальной, жилищной инфраструктуры и благоустройства, повышение энергоэффективности в МО \"Город Пикалево2","200","001 0502 П510000 000 000 ",22246928,700000,21546928]
["Субсидии на мероприятия по строительству и реконструкции объектов водоснабжения, водоотведения и очистки сточных вод за счет средств областного бюджета в рамках подпрограммы \"Развитие коммунальной и жилищной инфраструктуры в МО \"Город Пикалево\" муниципальной программы \"Развитие коммунальной, жилищной инфраструктуры и благоустройства, повышение энергоэффективности в МО \"Город Пикалево\"","200","001 0502 П517025 000 000 ",20000000,"-",20000000]
["Субсидии на осуществление капитальных вложений в объекты капитального строительства государственной (муниципальной) собственности государственным (муниципальным) унитарным предприятиям","200","001 0502 П517025 466 000 ",20000000,"-",20000000]
["Поступление финансовых активов","200","001 0502 П517025 466 500 ",20000000,"-",20000000]
["Увеличение стоимости акций и иных форм участия в капитале","200","001 0502 П517025 466 530 ",20000000,"-",20000000]
["Мероприятия по разработке схемы водоснабжения и водоотведения по МО \"Город Пикалево\"в рамках подпрограммы \"Развитие коммунальной и жилищной инфраструктуры в МО \"Город Пикалево\" муниципальной программы \"Развитие коммунальной, жилищной инфраструктуры и благоустройства, повышение энергоэффективности в МО \"Город Пикалево\"","200","001 0502 П51П121 000 000 ",700000,700000,"-"]
["Прочая закупка товаров, работ и услуг для обеспечения государственных (муниципальных) нужд","200","001 0502 П51П121 244 000 ",700000,700000,"-"]
["Расходы","200","001 0502 П51П121 244 200 ",700000,700000,"-"]
["Оплата работ, услуг","200","001 0502 П51П121 244 220 ",700000,700000,"-"]
["Прочие работы, услуги","200","001 0502 П51П121 244 226 ",700000,700000,"-"]
["Субсидии на мероприятия, направленные на безаварийную работу объектов водоснабжения и водоотведения в рамках подпрограммы \"Развитие коммунальной и жилищной инфраструктуры в МО \"Город Пикалево\" муниципальной  программы \"Развитие коммунальной,  жилищной инфраструктуры и благоустройства, повышение энергоэффективности в МО \"Город Пикалево\"","200","001 0502 П51П604 000 000 ",296928,"-",296928]
["Субсидии юридическим лицам (кроме некоммерческих организаций), индивидуальным предпринимателям, физическим лицам","200","001 0502 П51П604 810 000 ",296928,"-",296928]
["Расходы","200","001 0502 П51П604 810 200 ",296928,"-",296928]
["Безвозмездные перечисления организациям","200","001 0502 П51П604 810 240 ",296928,"-",296928]
["Безвозмездные перечисления государственным и муниципальным организациям","200","001 0502 П51П604 810 241 ",296928,"-",296928]
["Субсидии на мероприятия по строительству и реконструкции объектов водоснабжения, водоотведения и очистки сточных вод в рамках подпрограммы \"Развитие коммунальной и жилищной инфраструктуры в МО \"Город Пикалево\" муниципальной  программы \"Развитие коммунальной,  жилищной инфраструктуры и благоустройства, повышение энергоэффективности в МО \"Город Пикалево\"","200","001 0502 П51П608 000 000 ",1250000,"-",1250000]
["Субсидии на осуществление капитальных вложений в объекты капитального строительства государственной (муниципальной) собственности государственным (муниципальным) унитарным предприятиям","200","001 0502 П51П608 466 000 ",1250000,"-",1250000]
["Поступление финансовых активов","200","001 0502 П51П608 466 500 ",1250000,"-",1250000]
["Увеличение стоимости акций и иных форм участия в капитале","200","001 0502 П51П608 466 530 ",1250000,"-",1250000]
["Благоустройство","200","001 0503 0000000 000 000 ",13048292.92,7685583.5800000001,5362709.34]
["Непрограммные расходы органов местного самоуправления по вопросам жилищно-коммунального хозяйства","200","001 0503 Г250000 000 000 ",471051.92,237250.69,233801.22999999998]
["Прочие мероприятия  по благоустройству территории в рамках непрограммных расходов органов местного самоуправления по вопросам жилищно-коммунального хозяйства","200","001 0503 Г25Г114 000 000 ",471051.92,237250.69,233801.22999999998]
["Прочая закупка товаров, работ и услуг для обеспечения государственных (муниципальных) нужд","200","001 0503 Г25Г114 244 000 ",471051.92,237250.69,233801.22999999998]
["Расходы","200","001 0503 Г25Г114 244 200 ",471051.92,237250.69,233801.22999999998]
["Оплата работ, услуг","200","001 0503 Г25Г114 244 220 ",471051.92,237250.69,233801.22999999998]
["Прочие работы, услуги","200","001 0503 Г25Г114 244 226 ",471051.92,237250.69,233801.22999999998]
["Подпрограмма \"Благоустройство территории МО \"Город Пикалево\" муниципальной программы \"Развитие коммунальной, жилищной инфраструктуры и благоустройства, повышение энергоэффективности в МО \"Город Пикалево\"","200","001 0503 П530000 000 000 ",12577241,7448332.8899999997,5128908.1100000003]
["Обеспечение уличного освещения территории в рамках подпрограммы \"Благоустройство территории МО \"Город Пикалево\" муниципальной  программы \"Развитие коммунальной,  жилищной инфраструктуры и благоустройства, повышение энергоэффективности в МО \"Город Пикалево\"","200","001 0503 П53П106 000 000 ",7941361,4395222.5199999996,3546138.4800000004]
["Прочая закупка товаров, работ и услуг для обеспечения государственных (муниципальных) нужд","200","001 0503 П53П106 244 000 ",7941361,4395222.5199999996,3546138.4800000004]
["Расходы","200","001 0503 П53П106 244 200 ",7941361,4395222.5199999996,3546138.4800000004]
["Оплата работ, услуг","200","001 0503 П53П106 244 220 ",7941361,4395222.5199999996,3546138.4800000004]
["Коммунальные услуги","200","001 0503 П53П106 244 223 ",7941361,4395222.5199999996,3546138.4800000004]
["Обеспечение озеленения территории в рамках подпрограммы \"Благоустройство территории МО \"Город Пикалево\" муниципальной  программы \"Развитие коммунальной,  жилищной инфраструктуры и благоустройства, повышение энергоэффективности в МО \"Город Пикалево\"","200","001 0503 П53П110 000 000 ",1382100,907883,474217]
["Прочая закупка товаров, работ и услуг для обеспечения государственных (муниципальных) нужд","200","001 0503 П53П110 244 000 ",1382100,907883,474217]
["Расходы","200","001 0503 П53П110 244 200 ",1382100,907883,474217]
["Оплата работ, услуг","200","001 0503 П53П110 244 220 ",1382100,907883,474217]
["Работы, услуги по содержанию имущества","200","001 0503 П53П110 244 225 ",1382100,907883,474217]
["Прочие мероприятия  по благоустройству территории в рамках подпрограммы \"Благоустройство территории МО \"Город Пикалево\"  муниципальной  программы \"Развитие коммунальной,  жилищной инфраструктуры и благоустройства, повышение энергоэффективности в МО \"Город Пикалево\"","200","001 0503 П53П111 000 000 ",1637880,1151765,486115]
["Прочая закупка товаров, работ и услуг для обеспечения государственных (муниципальных) нужд","200","001 0503 П53П111 244 000 ",1637880,1151765,486115]
["Расходы","200","001 0503 П53П111 244 200 ",1637880,1151765,486115]
["Оплата работ, услуг","200","001 0503 П53П111 244 220 ",1637880,1151765,486115]
["Работы, услуги по содержанию имущества","200","001 0503 П53П111 244 225 ",1637880,1151765,486115]
["Субсидии на мероприятия по содержанию и обслуживанию инженерных сетей, находящихся в муниципальной собственности в рамках подпрограммы \"Благоустройство территории МО \"Город Пикалево\" муниципальной  программы \"Развитие коммунальной,  жилищной инфраструктуры и благоустройства, повышение энергоэффективности в МО \"Город Пикалево\"","200","001 0503 П53П607 000 000 ",1615900,993462.37,622437.63]
["Субсидии юридическим лицам (кроме некоммерческих организаций), индивидуальным предпринимателям, физическим лицам","200","001 0503 П53П607 810 000 ",1615900,993462.37,622437.63]
["Расходы","200","001 0503 П53П607 810 200 ",1615900,993462.37,622437.63]
["Безвозмездные перечисления организациям","200","001 0503 П53П607 810 240 ",1615900,993462.37,622437.63]
["Безвозмездные перечисления государственным и муниципальным организациям","200","001 0503 П53П607 810 241 ",1037740,612616.44999999995,425123.55000000005]
["Безвозмездные перечисления организациям, за исключением государственных и муниципальных организаций","200","001 0503 П53П607 810 242 ",578160,380845.92,197314.08000000002]
["ОБРАЗОВАНИЕ","200","001 0700 0000000 000 000 ",138000,130583.5,7416.5]
["Молодежная политика и оздоровление детей","200","001 0707 0000000 000 000 ",138000,130583.5,{"$f":"IF(OR(D463=\"-\",E463=D463),\"-\",D463-IF(E463=\"-\",0,E463))","v":7416.5}]
["Подпрограмма \"Молодежная политика в МО \"Город Пикалево\" муниципальной программы \"Культура, физическая культура, спорт и молодежная политика в МО \"Город Пикалево\"","200","001 0707 П130000 000 000 ",138000,130583.5,7416.5]
["Субсидии на организацию и проведение мероприятий в сфере молодежной политики в рамках подпрограммы \"Молодежная политика в МО \"Город Пикалево\" муниципальной программы \"Культура, физическая культура, спорт и молодежная политика в МО \"Город Пикалево\"","200","001 0707 П13П508 000 000 ",138000,130583.5,7416.5]
["Субсидии бюджетным учреждениям на иные цели","200","001 0707 П13П508 612 000 ",138000,130583.5,7416.5]
["Расходы","200","001 0707 П13П508 612 200 ",138000,130583.5,7416.5]
["Безвозмездные перечисления организациям","200","001 0707 П13П508 612 240 ",138000,130583.5,7416.5]
["Безвозмездные перечисления государственным и муниципальным организациям","200","001 0707 П13П508 612 241 ",138000,130583.5,7416.5]
["КУЛЬТУРА, КИНЕМАТОГРАФИЯ","200","001 0800 0000000 000 000 ",33131565.16,20246239.289999999,12885325.870000001]
["Культура","200","001 0801 0000000 000 000 ",33131565.16,20246239.289999999,12885325.870000001]
["Непрограммные расходы органов местного самоуправления по вопросам культуры","200","001 0801 Г280000 000 000 ",18000,18000,"-"]
["Обеспечение мероприятий, связанных с приобретением подарков ветеранам Великой Отечественной войны ко дню празднования 70-летия Победы в рамках непрограммных расходов органов местного самоуправления по вопросам культуры","200","001 0801 Г28Г123 000 000 ",18000,18000,"-"]
["Прочая закупка товаров, работ и услуг для обеспечения государственных (муниципальных) нужд","200","001 0801 Г28Г123 244 000 ",18000,18000,"-"]
["Расходы","200","001 0801 Г28Г123 244 200 ",18000,18000,"-"]
["Прочие расходы","200","001 0801 Г28Г123 244 290 ",18000,18000,"-"]
["Подпрограмма \"Культура в МО \"Город Пикалево\" муниципальной программы \"Культура, физическая культура, спорт и молодежная политика в МО \"Город Пикалево\"","200","001 0801 П110000 000 000 ",33113565.16,20228239.289999999,12885325.870000001]
["Субсидии на капитальный ремонт объектов культуры МО \"Город Пикалево\" за счет средств областного бюджета в рамках подпрограммы \"Культура в МО \"Город Пикалево\" муниципальной программы \"Культура, физическая культура, спорт и молодежная политика в МО \"Город Пикалево\"","200","001 0801 П117035 000 000 ",3085358.58,2122730.9900000002,962627.58999999985]
["Субсидии бюджетным учреждениям на иные цели","200","001 0801 П117035 612 000 ",3085358.58,2122730.9900000002,962627.58999999985]
["Расходы","200","001 0801 П117035 612 200 ",3085358.58,2122730.9900000002,962627.58999999985]
["Безвозмездные перечисления организациям","200","001 0801 П117035 612 240 ",3085358.58,2122730.9900000002,962627.58999999985]
["Безвозмездные перечисления государственным и муниципальным организациям","200","001 0801 П117035 612 241 ",3085358.58,2122730.9900000002,962627.58999999985]
["Субсидии на обеспечение выплат стимулирующего характера работникам муниципальных учреждений культуры Ленинградской области за счет средств областного бюджета в рамках подпрограммы \"Культура в МО \"Город Пикалево\" муниципальной программы \"Культура, физическая культура, спорт и молодежная политика в МО \"Город Пикалево\"","200","001 0801 П117036 000 000 ",3905700,1619057.98,2286642.02]
["Субсидии бюджетным учреждениям на иные цели","200","001 0801 П117036 612 000 ",3905700,1619057.98,2286642.02]
["Расходы","200","001 0801 П117036 612 200 ",3905700,1619057.98,2286642.02]
["Безвозмездные перечисления организациям","200","001 0801 П117036 612 240 ",3905700,1619057.98,2286642.02]
["Безвозмездные перечисления государственным и муниципальным организациям","200","001 0801 П117036 612 241 ",3905700,1619057.98,2286642.02]
["Субсидии на поддержку муниципальных образований Ленинградской области по развитию общественной инфрструктуры муниципального значения Ленинградской области, за счет средств бюджета Бокстогорского муниципального района в рамках подпрограммы \"Культура в МО \"Город Пикалево\"","200","001 0801 П117202 000 000 ",50000,39155,10845]
["Субсидии бюджетным учреждениям на иные цели","200","001 0801 П117202 612 000 ",50000,39155,10845]
["Расходы","200","001 0801 П117202 612 200 ",50000,39155,10845]
["Безвозмездные перечисления организациям","200","001 0801 П117202 612 240 ",50000,39155,10845]
["Безвозмездные перечисления государственным и муниципальным организациям","200","001 0801 П117202 612 241 ",50000,39155,10845]
["Субсидии на мероприятия по созданию условий для организации досуга, развития местного традиционного народного художественного творчества, сохранения, возрождения и развития народных художественных промыслов за счет средств областного бюджета в рамках подпрограммы \"Культура в МО \"Город Пикалево\" муниципальной программы \"Культура, физическая культура, спорт и молодежная политика в МО \"Город Пикалево\"","200","001 0801 П117428 000 000 ",400000,"-",400000]
["Субсидии бюджетным учреждениям на иные цели","200","001 0801 П117428 612 000 ",400000,"-",400000]
["Расходы","200","001 0801 П117428 612 200 ",400000,"-",400000]
["Безвозмездные перечисления организациям","200","001 0801 П117428 612 240 ",400000,"-",400000]
["Безвозмездные перечисления государственным и муниципальным организациям","200","001 0801 П117428 612 241 ",400000,"-",400000]
["Проведение мероприятий по сохранению исторического и культурного наследия Бокситогорского муниципального района за счет средств бюджета Бокситогорского муниципального района в рамках подпрограммы \"Культура в МО \"Город Пикалево\"\" муниципальной программы \"Культура, физическая культура, спорт и молодежная политика в МО \"Город Пикалево\"","200","001 0801 П11Б117 000 000 ",150000,149500,500]
["Прочая закупка товаров, работ и услуг для обеспечения государственных (муниципальных) нужд","200","001 0801 П11Б117 244 000 ",150000,149500,500]
["Расходы","200","001 0801 П11Б117 244 200 ",150000,149500,500]
["Оплата работ, услуг","200","001 0801 П11Б117 244 220 ",150000,149500,500]
["Работы, услуги по содержанию имущества","200","001 0801 П11Б117 244 225 ",150000,149500,500]
["Субсидии  на обеспечение исполнения расходных обязательств муниципальных образований в соответствии с планами мероприятий (\"дорожными картами\") по реализации указов Президента РФ от 7 мая 2012 года за счет средств бюджета Бокситогорского муниципального района в рамках подпрограммы \"Культура в МО \"Город Пикалево\" муниципальной программы \"Культура, физическая культура, спорт и молодежная политика в МО \"Город Пикалево\"","200","001 0801 П11Б745 000 000 ",3905700,1754672.25,2151027.75]
["Субсидии бюджетным учреждениям на иные цели","200","001 0801 П11Б745 612 000 ",3905700,1754672.25,2151027.75]
["Расходы","200","001 0801 П11Б745 612 200 ",3905700,1754672.25,2151027.75]
["Безвозмездные перечисления организациям","200","001 0801 П11Б745 612 240 ",3905700,1754672.25,2151027.75]
["Безвозмездные перечисления государственным и муниципальным организациям","200","001 0801 П11Б745 612 241 ",3905700,1754672.25,2151027.75]
["Предоставление муниципальным бюджетным учреждениям субсидий  в рамках подпрограммы \"Культура в МО \"Город Пикалево\" муниципальной программы \"Культура, физическая культура, спорт и молодежная политика в МО \"Город Пикалево\"","200","001 0801 П11П017 000 000 ",18329715,12268697.43,6061017.5700000003]
["Субсидии бюджетным учреждениям на финансовое обеспечение государственного (муниципального) задания на оказание государственных (муниципальных) услуг (выполнение работ)","200","001 0801 П11П017 611 000 ",18329715,12268697.43,6061017.5700000003]
["Расходы","200","001 0801 П11П017 611 200 ",18329715,12268697.43,6061017.5700000003]
["Безвозмездные перечисления организациям","200","001 0801 П11П017 611 240 ",18329715,12268697.43,6061017.5700000003]
["Безвозмездные перечисления государственным и муниципальным организациям","200","001 0801 П11П017 611 241 ",18329715,12268697.43,6061017.5700000003]
["Мероприятия по облагораживанию территории возле воинского захоронения ко дню празднования 70-летия Победы в рамках подпрограммы \"Культура в МО \"Город Пикалево\" муниципальной программы \"Культура, физическая культура, спорт и молодежная политика в МО \"Город Пикалево\"","200","001 0801 П11П125 000 000 ",49900,49900,"-"]
["Прочая закупка товаров, работ и услуг для обеспечения государственных (муниципальных) нужд","200","001 0801 П11П125 244 000 ",49900,49900,"-"]
["Расходы","200","001 0801 П11П125 244 200 ",49900,49900,"-"]
["Оплата работ, услуг","200","001 0801 П11П125 244 220 ",49900,49900,"-"]
["Работы, услуги по содержанию имущества","200","001 0801 П11П125 244 225 ",49900,49900,"-"]
["Субсидии на организацию и проведение мероприятий в сфере культуры в рамках подпрограммы \"Культура в МО \"Город Пикалево\" муниципальной программы \"Культура, физическая культура, спорт и молодежная политика в МО \"Город Пикалево\"","200","001 0801 П11П504 000 000 ",73000,22961.65,50038.35]
["Субсидии бюджетным учреждениям на иные цели","200","001 0801 П11П504 612 000 ",73000,22961.65,50038.35]
["Расходы","200","001 0801 П11П504 612 200 ",73000,22961.65,50038.35]
["Безвозмездные перечисления организациям","200","001 0801 П11П504 612 240 ",73000,22961.65,50038.35]
["Безвозмездные перечисления государственным и муниципальным организациям","200","001 0801 П11П504 612 241 ",73000,22961.65,50038.35]
["Субсидии на капитальный ремонт объектов культуры МО \"Город Пикалево\" в рамках подпрограммы \"Культура в МО \"Город Пикалево\" муниципальной программы \"Культура, физическая культура, спорт и молодежная политика в МО \"Город Пикалево\"","200","001 0801 П11П505 000 000 ",3085358.58,2122730.9900000002,962627.58999999985]
["Субсидии бюджетным учреждениям на иные цели","200","001 0801 П11П505 612 000 ",3085358.58,2122730.9900000002,962627.58999999985]
["Расходы","200","001 0801 П11П505 612 200 ",3085358.58,2122730.9900000002,962627.58999999985]
["Безвозмездные перечисления организациям","200","001 0801 П11П505 612 240 ",3085358.58,2122730.9900000002,962627.58999999985]
["Безвозмездные перечисления государственным и муниципальным организациям","200","001 0801 П11П505 612 241 ",3085358.58,2122730.9900000002,{"$f":"IF(OR(D527=\"-\",E527=D527),\"-\",D527-IF(E527=\"-\",0,E527))","v":962627.58999999985}]
["Субсидии на оплату услуг по предоставлению сцены для проведения мероприятия «Масленица» в рамках подпрограммы\"Культура в МО \"Город Пикалево\" муниципальной программы \"Культура, физическая культура, спорт и молодежная политика в МО \"Город Пикалево\"","200","001 0801 П11П517 000 000 ",36400,36400,"-"]
["Субсидии бюджетным учреждениям на иные цели","200","001 0801 П11П517 612 000 ",36400,36400,"-"]
["Расходы","200","001 0801 П11П517 612 200 ",36400,36400,"-"]
["Безвозмездные перечисления организациям","200","001 0801 П11П517 612 240 ",36400,36400,"-"]
["Безвозмездные перечисления государственным и муниципальным организациям","200","001 0801 П11П517 612 241 ",36400,36400,"-"]
["Субсидии на оплату услуг по замене покрытия пола на путях эвакуации в общем коридоре на втором этаже здания Дворца культуры в рамках подпрограммы\"Культура в МО \"Город Пикалево\" муниципальной программы \"Культура, физическая культура, спорт и молодежная политика в МО \"Город Пикалево\"","200","001 0801 П11П518 000 000 ",42433,42433,"-"]
["Субсидии бюджетным учреждениям на иные цели","200","001 0801 П11П518 612 000 ",42433,42433,"-"]
["Расходы","200","001 0801 П11П518 612 200 ",42433,42433,"-"]
["Безвозмездные перечисления организациям","200","001 0801 П11П518 612 240 ",42433,42433,"-"]
["Безвозмездные перечисления государственным и муниципальным организациям","200","001 0801 П11П518 612 241 ",42433,42433,"-"]
["СОЦИАЛЬНАЯ ПОЛИТИКА","200","001 1000 0000000 000 000 ",7444200,3435673,4008527]
["Пенсионное обеспечение","200","001 1001 0000000 000 000 ",2905900,1157194,1748706]
["Непрограммные расходы органов местного самоуправления по вопросам социальной политики","200","001 1001 Г2П0000 000 000 ",2905900,1157194,1748706]
["Доплаты к пенсиям муниципальных служащих в рамках непрограммных расходов органов местного самоуправления по вопросам социальной политики","200","001 1001 Г2ПГ112 000 000 ",2905900,1157194,1748706]
["Пособия, компенсации и иные социальные выплаты гражданам, кроме публичных нормативных обязательств","200","001 1001 Г2ПГ112 321 000 ",2905900,1157194,1748706]
["Расходы","200","001 1001 Г2ПГ112 321 200 ",2905900,1157194,1748706]
["Социальное обеспечение","200","001 1001 Г2ПГ112 321 260 ",2905900,1157194,1748706]
["Пенсии, пособия, выплачиваемые организациями сектора государственного управления","200","001 1001 Г2ПГ112 321 263 ",2905900,1157194,1748706]
["Социальное обеспечение населения","200","001 1003 0000000 000 000 ",4228300,2262479,1965821]
["Непрограммные расходы органов местного самоуправления по вопросам социальной политики","200","001 1003 Г2П0000 000 000 ",73000,36000,37000]
["Оказание других видов социальной помощи в рамках непрограммных расходов органов местного самоуправления по вопросам социальной политики","200","001 1003 Г2ПГ300 000 000 ",73000,36000,37000]
["Пособия, компенсации, меры социальной поддержки по публичным нормативным обязательствам","200","001 1003 Г2ПГ300 313 000 ",73000,36000,37000]
["Расходы","200","001 1003 Г2ПГ300 313 200 ",73000,36000,37000]
["Социальное обеспечение","200","001 1003 Г2ПГ300 313 260 ",73000,36000,37000]
["Пособия по социальной помощи населению","200","001 1003 Г2ПГ300 313 262 ",73000,36000,37000]
["Подпрограмма \" Жилье для молодежи\" муниципальной программы \"Обеспечение качественным жильем граждан в МО \"Город Пикалево\"","200","001 1003 П210000 000 000 ",2226479,2226479,"-"]
["Субсидии на жилье для молодежи за счет средств областного бюджета в рамках подпрограммы \"Жилье для молодежи\" муниципальной программы \"Обеспечение качественным жильем граждан в МО \"Город Пикалево\"","200","001 1003 П217075 000 000 ",2067445,2067445,"-"]
["Субсидии гражданам на приобретение жилья","200","001 1003 П217075 322 000 ",2067445,2067445,"-"]
["Расходы","200","001 1003 П217075 322 200 ",2067445,2067445,"-"]
["Социальное обеспечение","200","001 1003 П217075 322 260 ",2067445,2067445,"-"]
["Пособия по социальной помощи населению","200","001 1003 П217075 322 262 ",2067445,2067445,"-"]
["Субсидии на жилье для молодежи в рамках подпрограммы \"Жилье для молодежи\" муниципальной программы \"Обеспечение качественным жильем граждан в МО \"Город Пикалево\"","200","001 1003 П21П601 000 000 ",159034,159034,"-"]
["Субсидии гражданам на приобретение жилья","200","001 1003 П21П601 322 000 ",159034,159034,"-"]
["Расходы","200","001 1003 П21П601 322 200 ",159034,159034,"-"]
["Социальное обеспечение","200","001 1003 П21П601 322 260 ",159034,159034,"-"]
["Пособия по социальной помощи населению","200","001 1003 П21П601 322 262 ",159034,159034,"-"]
["Подпрограмма \" Обеспечение жильем молодых семей\" муниципальной программы \"Обеспечение качественным жильем граждан в МО \"Город Пикалево\"","200","001 1003 П220000 000 000 ",1928821,"-",1928821]
["Субсидии на обеспечение жильем молодых семей за счет средств федерального бюджета в рамках подпрограммы \"Обеспечение жильем молодых семей\" муниципальной программы \"Обеспечение качественным жильем граждан в МО \"Город Пикалево\"","200","001 1003 П225020 000 000 ",430000,"-",430000]
["Субсидии гражданам на приобретение жилья","200","001 1003 П225020 322 000 ",430000,"-",430000]
["Расходы","200","001 1003 П225020 322 200 ",430000,"-",430000]
["Социальное обеспечение","200","001 1003 П225020 322 260 ",430000,"-",430000]
["Пособия по социальной помощи населению","200","001 1003 П225020 322 262 ",430000,"-",430000]
["Субсидии на обеспечение жильем молодых семей за счет средств областного бюджета в рамках подпрограммы \"Обеспечение жильем молодых семей\" муниципальной программы \"Обеспечение качественным жильем граждан в МО \"Город Пикалево\"","200","001 1003 П227076 000 000 ",1243563,"-",1243563]
["Субсидии гражданам на приобретение жилья","200","001 1003 П227076 322 000 ",1243563,"-",1243563]
["Расходы","200","001 1003 П227076 322 200 ",1243563,"-",1243563]
["Социальное обеспечение","200","001 1003 П227076 322 260 ",1243563,"-",1243563]
["Пособия по социальной помощи населению","200","001 1003 П227076 322 262 ",1243563,"-",1243563]
["Субсидии на обеспечение жильем молодых семей в рамках подпрограммы \"Обеспечение жильем молодых семей\" муниципальной программы \"Обеспечение качественным жильем граждан в МО \"Город Пикалево\"","200","001 1003 П22П602 000 000 ",255258,"-",255258]
["Субсидии гражданам на приобретение жилья","200","001 1003 П22П602 322 000 ",255258,"-",255258]
["Расходы","200","001 1003 П22П602 322 200 ",255258,"-",255258]
["Социальное обеспечение","200","001 1003 П22П602 322 260 ",255258,"-",255258]
["Пособия по социальной помощи населению","200","001 1003 П22П602 322 262 ",255258,"-",255258]
["Другие вопросы в области социальной политики","200","001 1006 0000000 000 000 ",310000,16000,294000]
["Подпрограмма \"Физическая культура и спорт в МО \"Город Пикалево\" муниципальной программы \"Культура, физическая культура, спорт и молодежная политика в МО \"Город Пикалево\"","200","001 1006 П120000 000 000 ",310000,16000,294000]
["Субсидии на организацию мероприятий по приспособлению для доступа инвалидов здания плавательного бассейна г. Пикалево за счет средств областного бюджета в рамках подпрограммы \"Физическая культура и спорт в МО \"Город Пикалево\" муниципальной программы \"Культура, физическая культура, спорт и молодежная политика в МО \"Город Пикалево\"","200","001 1006 П127093 000 000 ",155000,"-",155000]
["Субсидии бюджетным учреждениям на иные цели","200","001 1006 П127093 612 000 ",155000,"-",155000]
["Расходы","200","001 1006 П127093 612 200 ",155000,"-",155000]
["Безвозмездные перечисления организациям","200","001 1006 П127093 612 240 ",155000,"-",155000]
["Безвозмездные перечисления государственным и муниципальным организациям","200","001 1006 П127093 612 241 ",155000,"-",155000]
["Субсидии на организацию мероприятий по приспособлению для доступа инвалидов здания плавательного бассейна города Пикалево в рамках подпрограммы \"Физическая культура и спорт в МО \"Город Пикалево\" муниципальной программы \"Культура, физическая культура, спорт и молодежная политика в МО \"Город Пикалево\"","200","001 1006 П12П507 000 000 ",155000,16000,139000]
["Субсидии бюджетным учреждениям на иные цели","200","001 1006 П12П507 612 000 ",155000,16000,139000]
["Расходы","200","001 1006 П12П507 612 200 ",155000,16000,139000]
["Безвозмездные перечисления организациям","200","001 1006 П12П507 612 240 ",155000,16000,139000]
["Безвозмездные перечисления государственным и муниципальным организациям","200","001 1006 П12П507 612 241 ",155000,16000,{"$f":"IF(OR(D591=\"-\",E591=D591),\"-\",D591-IF(E591=\"-\",0,E591))","v":139000}]
["ФИЗИЧЕСКАЯ КУЛЬТУРА И СПОРТ","200","001 1100 0000000 000 000 ",27731735,19110554,8621181]
["Физическая культура","200","001 1101 0000000 000 000 ",27731735,19110554,8621181]
["Подпрограмма \"Физическая культура и спорт в МО \"Город Пикалево\" муниципальной программы \"Культура, физическая культура, спорт и молодежная политика в МО \"Город Пикалево\"","200","001 1101 П120000 000 000 ",27731735,19110554,8621181]
["Субсидии на поддержку муниципальных образований Ленинградской области по развитию общественной инфраструктуры муниципального значения Ленинградской области, за счет средств бюджета Бокситогорского муниципального района в рамках подпрограммы \"Физическая культура и спорт в МО \"Город Пикалево\" муниципальной программы \"Культура, физическая культура, спорт и молодежная политика в МО \"Город Пикалево\"","200","001 1101 П127202 000 000 ",100000,88900,11100]
["Субсидии бюджетным учреждениям на иные цели","200","001 1101 П127202 612 000 ",100000,88900,11100]
["Расходы","200","001 1101 П127202 612 200 ",100000,88900,11100]
["Безвозмездные перечисления организациям","200","001 1101 П127202 612 240 ",100000,88900,11100]
["Безвозмездные перечисления государственным и муниципальным организациям","200","001 1101 П127202 612 241 ",100000,88900,11100]
["Предоставление муниципальным бюджетным учреждениям субсидий  в рамках подпрограммы \"Физическая культура и спорт в МО \"Город Пикалево\" муниципальной программы \"Культура, физическая культура, спорт и молодежная политика в МО \"Город Пикалево\"","200","001 1101 П12П017 000 000 ",25551638,17982650,7568988]
["Субсидии бюджетным учреждениям на финансовое обеспечение государственного (муниципального) задания на оказание государственных (муниципальных) услуг (выполнение работ)","200","001 1101 П12П017 611 000 ",25551638,17982650,7568988]
["Расходы","200","001 1101 П12П017 611 200 ",25551638,17982650,7568988]
["Безвозмездные перечисления организациям","200","001 1101 П12П017 611 240 ",25551638,17982650,7568988]
["Безвозмездные перечисления государственным и муниципальным организациям","200","001 1101 П12П017 611 241 ",25551638,17982650,7568988]
["Субсидии на организацию и проведение мероприятий в сфере физической культуры и спорта в рамках подпрограммы \"Физическая культура и спорт в МО \"Город Пикалево\" муниципальной программы \"Культура, физическая культура, спорт и молодежная политика в МО \"Город Пикалево\"","200","001 1101 П12П506 000 000 ",58000,58000,"-"]
["Субсидии бюджетным учреждениям на иные цели","200","001 1101 П12П506 612 000 ",58000,58000,"-"]
["Расходы","200","001 1101 П12П506 612 200 ",58000,58000,"-"]
["Безвозмездные перечисления организациям","200","001 1101 П12П506 612 240 ",58000,58000,"-"]
["Безвозмездные перечисления государственным и муниципальным организациям","200","001 1101 П12П506 612 241 ",58000,58000,"-"]
["Субсидии на обеспечение выплат стимулирующего характера работникам муниципальных учреждений физической культуры и спорта МО \"Город Пикалево\" в рамках подпрограммы \"Физическая культура и спорт в МО \"Город Пикалево\" муниципальной программы \"Культура, физическая культура, спорт и молодежная политика в МО \"Город Пикалево\"","200","001 1101 П12П514 000 000 ",2022097,981004,1041093]
["Субсидии бюджетным учреждениям на иные цели","200","001 1101 П12П514 612 000 ",2022097,981004,1041093]
["Расходы","200","001 1101 П12П514 612 200 ",2022097,981004,1041093]
["Безвозмездные перечисления организациям","200","001 1101 П12П514 612 240 ",2022097,981004,1041093]
["Безвозмездные перечисления государственным и муниципальным организациям","200","001 1101 П12П514 612 241 ",2022097,981004,1041093]
["СРЕДСТВА МАССОВОЙ ИНФОРМАЦИИ","200","001 1200 0000000 000 000 ",676700,676700,"-"]
["Периодическая печать и издательства","200","001 1202 0000000 000 000 ",676700,676700,"-"]
["Подпрограмма \"Информирование населения о деятельности органов местного самоуправления МО \"Город Пикалево\" муниципальной  программы \"Развитие муниципального управления и информационного общества в МО \"Город Пикалево\"","200","001 1202 П620000 000 000 ",676700,676700,"-"]
["Субсидии на организацию опубликования муниципальных правовых актов и их проектов о деятельности органов местного самоуправления МО \"Город Пикалево\", а также иной социально-значимой информации через официальные СМИ в рамках подпрограммы \"Информирование населения о деятельности органов местного самоуправления МО \"Город Пикалево\" муниципальной  программы \"Развитие муниципального управления и информационного общества в МО \"Город Пикалево\"","200","001 1202 П62П501 000 000 ",676700,676700,"-"]
["Субсидии некоммерческим организациям (за исключением государственных (муниципальных) учреждений)","200","001 1202 П62П501 630 000 ",676700,676700,"-"]
["Расходы","200","001 1202 П62П501 630 200 ",676700,676700,"-"]
["Безвозмездные перечисления организациям","200","001 1202 П62П501 630 240 ",676700,676700,"-"]
["Безвозмездные перечисления организациям, за исключением государственных и муниципальных организаций","200","001 1202 П62П501 630 242 ",676700,676700,"-"]
["ОБСЛУЖИВАНИЕ ГОСУДАРСТВЕННОГО И МУНИЦИПАЛЬНОГО ДОЛГА","200","001 1300 0000000 000 000 ",809112,106028.58,703083.42]
["Обслуживание государственного внутреннего и муниципального долга","200","001 1301 0000000 000 000 ",809112,106028.58,703083.42]
["Непрограммные расходы органов местного самоуправления по вопросам обслуживания муниципального долга","200","001 1301 Г2Д0000 000 000 ",809112,106028.58,703083.42]
["Процентные платежи по муниципальному долгу в рамках непрограммных расходов органов местного самоуправления по вопросам обслуживания муниципального долга","200","001 1301 Г2ДГ113 000 000 ",809112,106028.58,703083.42]
["Обслуживание муниципального долга","200","001 1301 Г2ДГ113 730 000 ",809112,106028.58,703083.42]
["Расходы","200","001 1301 Г2ДГ113 730 200 ",809112,106028.58,703083.42]
["Обслуживание государственного (муниципального) долга","200","001 1301 Г2ДГ113 730 230 ",809112,106028.58,703083.42]
["Обслуживание внутреннего долга","200","001 1301 Г2ДГ113 730 231 ",809112,106028.58,703083.42]
[]
["Результат исполнения бюджета (дефицит / профицит)","450","x",-62235882.25,1164326.33,"x                    "]

{"sheet":"ExportParams","index":2,"n_rows":4,"n_cols":2,"rows_kept":4,"cut":false,"hidden":true,"merged":[]}
["EXPORT_SRC_KIND","ПосОБР"]
["EXPORT_PARAM_SRC_KIND","3"]
["EXPORT_SRC_CODE","45012"]
["EXPORT_VB_CODE","3"]

{"sheet":"Источники","index":3,"n_rows":48,"n_cols":6,"rows_kept":48,"cut":false,"hidden":false,"merged":[[0,0,0,5]]}
["                                                                                                                                                                             Форма 0503117  с.3"]
["                                 3. Источники финансирования дефицита бюджета"]
[]
[" Наименование показателя","Код строки","Код источника финансирования дефицита бюджета по бюджетной классификации","Утвержденные бюджетные назначения","Исполнено","Неисполненные назначения"]
[]
[1,2,3,"4","5","6"]
["Источники финансирования дефицита бюджета - всего","500","*** 90000000000000 000",62235882.25,-1164326.33,{"$f":"SUM(D7-E7)","v":63400208.579999998}]
["в том числе:"]
["источники внутреннего финансирования бюджета","520","*** 01000000000000 000",4361314,1172000,{"$f":"SUM(D9-E9)","v":3189314}]
["из них:"]
["Кредиты кредитных организаций в валюте Российской Федерации","520","000 01020000000000 000",4525600,"-",{"$f":"SUM(D11:E11)","v":4525600}]
["Получение кредитов от кредитных организаций в валюте Российской Федерации","520","000 01020000000000 700",10000000,"-",10000000]
["Получение кредитов от кредитных организаций бюджетами городских поселений в валюте Российской Федерации","520","000 01020000130000 710",10000000,"-",10000000]
["Погашение кредитов, предоставленных кредитными  организациями в валюте Российской Федерации","520","000 01020000000000 800",-5474400,"-",-5474400]
["Погашение бюджетами городских поселений кредитов от кредитных организаций в валюте Российской Федерации","520","000 01020000130000 810",-5474400,"-",-5474400]
["Бюджетные кредиты от других бюджетов бюджетной системы Российской Федерации","520","000 01030000000000 000",-3534286,"-",-3534286]
["Бюджетные кредиты от других бюджетов бюджетной системы Российской Федерации в валюте Российской Федерации","520","000 01030100000000 000",-3534286,"-",-3534286]
["Погашение бюджетых кредитов, полученных от других бюджетов бюджетной системы Российской Федерации в валюте Российской Федерации","520","000 01030100000000 800",-3534286,"-",-3534286]
["Погашение бюджетами городских поселений кредитов от других бюджетов бюджетной системы Российской Федерации в валюте Российской Федерации","520","000 01030100130000 810",-3534286,"-",-3534286]
["Иные источники внутреннего финансирования дефицита бюджета","520","000 01060000000000 000",3370000,1172000,{"$f":"SUM(D20)-E20","v":2198000}]
["Акции и иные формы участия в капитале, находящихся в государственной и муниципальной собственности","520","000 01060100000000 000",970000,197000,{"$f":"SUM(D21)-E21","v":773000}]
["Средства от продажи акций и иных форм участия в капитале, находящихся в государственной и муниципальной собственности","520","000 01060100000000 630",970000,197000,{"$f":"SUM(D22)-E22","v":773000}]
["Средства от продажи акций и иных форм участия в капитале, находящихся в собственности городских поселений","520","000 01060100130000 630",970000,197000,{"$f":"SUM(D23)-E23","v":773000}]
["Исполнение государственных и муниципальных гарантий ","520","000 01060400000000 000",-7779403,"-",-7779403]
["Исполнение государственных и муниципальных гарантий в валюте Российской Федерации","520","000 01060401000000 000",-7779403,"-",-7779403]
["Исполнение государственных и муниципальных гарантий в валюте Российской Федерации в случае, если исполнение гарантом муниципальных гарантий ведет к возникновению права регрессного требования гаранта к принципалу либо обусловлено уступкой гаранту прав требования бенефициара к принципалу","520","000 01060401000000 800",-7779403,"-",-7779403]
["Исполнение муниципальных гарантий городских поселений в валюте Российской Федерации в случае, если исполнение гарантом муниципальных гарантий ведет к возникновению права регрессного требования гаранта к принципалу либо обусловлено уступкой гаранту прав требования бенефициара к принципалу","520","000 01060401130000 810",-7779403,"-",-7779403]
["Прочие бюджетные кредиты (ссуды), предоставленные внутри страны","520","000 01060800000000 000",10179403,975000,{"$f":"SUM(D28)-E28","v":9204403}]
["Возврат прочих бюджетных кредитов (ссуд), предоставленные внутри страны","520","000 01060800000000 600",10179403,975000,{"$f":"SUM(D29)-E29","v":9204403}]
["Возврат прочих бюджетных кредитов (ссуд), предоставленных бюджетами городских поселений внутри страны","520","000 01060800130000 640",10179403,975000,{"$f":"SUM(D30)-E30","v":9204403}]
["Изменение остатков средств","700","*** 01000000000000 000",57874568.25,-2336326.33,{"$f":"SUM(D31-E31)","v":60210894.579999998}]
["Изменение остатков средств на счетах по учету средств бюджета","700","*** 01050000000000 000",57874568.25,-2336326.33,{"$f":"SUM(D32-E32)","v":60210894.579999998}]
["увеличение остатков средств бюджетов","710","000 01050000000000 500",-266987115.97,-208815914.90000001,"x                    "]
["увеличение прочих остатков средств бюджетов","710","000 01050200000000 500",-266987115.97,-208815914.90000001,"x                    "]
["увеличение прочих остатков денежных средств бюджетов","710","000 01050201000000 510",-266987115.97,-208815914.90000001,"x                    "]
["Увеличение прочих остатков денежных средств бюджетов городских поселений","710","000 01050201130000 510",-266987115.97,-208815914.90000001,"x                    "]
["уменьшение остатков средств бюджетов","720","000 01050000000000 600",324861684.22000003,206479588.56999999,"x                    "]
["уменьшение прочих остатков средств бюджетов","720","000 01050200000000 600",324861684.22000003,206479588.56999999,"x                    "]
["уменьшение прочих остатков денежных средств бюджетов","720","000 01050201000000 610",324861684.22000003,206479588.56999999,"x                    "]
["Уменьшение прочих остатков денежных средств бюджетов городских поселений","720","000 01050201130000 610",324861684.22000003,206479588.56999999,"x                    "]
[]
[]
["Заместитель главы администрации",null,null,"Е.А. Соловьева"]
[]
[]
["Заведующий отделом финансов",null,null,"И.Ю. Жолудева"]
[]
["02 октября 2015 года"]